Workbook

Sheet Forside
B2: Bruger: | C2: Betonelement foreningen | N2: Version 0.927 - 11-12-2014 | V2: Betonelement-Foreningen December 2014 | BA2: U-værdi for en betonsandwichelementvæg | BH2: Ribbe omkring element | BO2: Ribbe omkring dør | BV2: Trådbinderetype | BW2: Diameter mm | BX2: 8 bindere pr. m² | CB2: 4 bindere pr. m² | CG2: Element | CK2: Døre | CO2: Vinduer | CS2: Forstærkninger | CV2: Reseveret til celler fra "data til vinduer, døre og forstærkninger
B3: Sagsnavn: | C3: U-Værdi program | I3: Sag nr.: | J3: 017681 | L3: =BB72&BB73&BB74&BB75&BB76&BB77&BB78&BB79&BB80&BB81&BB82&BB83&BB84&BB85&BB86&BB87&BB88&BB89&BB90&BB91&BB92 ->  | BA3: Materiale | BB3: d | BC3: λ | BD3: R | BE3: A | BF3: U' | BX3: Isoleringstykkelse [m] | CB3: Isoleringstykkelse [m] | CH3: x | CI3: y | CL3: x | CM3: y | CP3: x | CQ3: y
B4: Bygningsdel: | C4: Element | I4: Dato: | J4: 01-02-2013 | BB4: m | BC4: W/mK | BD4: m²K/W | BE4: m² | BF4: W/m²K | BX4: 0.1 | BY4: 0.125 | BZ4: 0.15 | CA4: 0.2 | CB4: 0.1 | CC4: 0.125 | CD4: 0.15 | CE4: 0.2 | CG4: Venstre Ribbe | CH4: 0 | CI4: 0 | CK4: Dør1 | CL4: =M14 -> 0.5 | CM4: =CK7 -> 0 | CO4: Vindue1 | CP4: =M17 -> 5.7 | CQ4: =N17+CO7 -> 0.5 | CS4: Forstærkning 1 | CT4: =M22 -> 4.4 | CU4: =N22+CS7 -> 0.5 | DL4: Dropdown til materialetyper
B5: Emne: | C5: Excel ark til beregning af uværdier for betonsandwitchelementer | I5: Int.: | J5: MKTA / MRNI / MVVE | BA5: =B12 -> Konstruktion af væg | BJ5: Ribbeisolering | BQ5: Ribbeisolering | BV5: Plast | BX5: 0 | BY5: 0 | BZ5: 0 | CA5: 0 | CB5: 0 | CC5: 0 | CD5: 0 | CE5: 0 | CH5: 0 | CI5: =D9 -> 4 | CL5: =CL4 -> 0.5 | CM5: =CM4+J14 -> 2 | CP5: =CP4 -> 5.7 | CQ5: =CQ4+J17 -> 1.5 | CT5: =CT4 -> 4.4 | CU5: =CU4+J22 -> 1 | DL5: Bagstøbning
B6: Element data | H6: Korrektion for forbindelsesbøjler med 1 ben | L6: Korrektion for ophængsbøjler | O6: Elementets orientering (vandret, op, ned) | S6: Snitlinie | U6: x= | V6: 1 | BA6: Indvendig overgangsisolans | BD6: =IF(Q9="Vandret",0.13,IF(Q9="Opad",0.1,IF(Q9="Nedad",0.17,"FEJL"))) -> 0.13 | BJ6: 0.025 | BK6: 0.05 | BL6: 0.075 | BM6: 0.1 | BQ6: 0.025 | BR6: 0.05 | BS6: 0.075 | BT6: 0.1 | BV6: Rustfast stål | BW6: 3 | BX6: 0.004 | BY6: 0.004 | BZ6: 0.003 | CA6: 0.003 | CB6: 0.002 | CC6: 0.002 | CD6: 0.002 | CE6: 0.001 | CH6: =G8 -> 0.2 | CI6: =CI5 -> 4 | CK6: Tillæg til dør1 | CL6: =CL5+K14 -> 1.5 | CM6: =CM5 -> 2 | CO6: Tillæg til dør1 | CP6: =CP5+K17 -> 6.7 | CQ6: =CQ5 -> 1.5 | CS6: Tillæg til dør1 | CT6: =CT5+K22 -> 4.9 | CU6: =CU5 -> 1 | DL6: Isolering | DN6: 1. materiale | DR6: 2. materiale | DV6: 3. materiale | DZ6: 4. materiale | ED6: 5. materiale | EI6: Tabeller fra "Materiale side"
BA7: =DL22 -> Forstøbning | BB7: =F14 -> 0.1 | BC7: 2,54 | BD7: =IF(BB7=0, 0, IF(BC7=0, 0, BB7/BC7)) -> 0.03937007874 | BH7: Væg-isolering | BI7: 0.1 | BJ7: 0.018 | BK7: 0.007 | BL7: 0.002 | BM7: 0 | BO7: Væg-isolering | BP7: 0.1 | BQ7: 0.018 | BR7: 0.007 | BS7: 0.002 | BT7: 0 | BV7: Rustfast stål | BW7: 4 | BX7: 0.008 | BY7: 0.007 | BZ7: 0.006 | CA7: 0.005 | CB7: 0.004 | CC7: 0.003 | CD7: 0.003 | CE7: 0.002 | CH7: =CH6 -> 0.2 | CI7: =CI4 -> 0 | CL7: =CL6 -> 1.5 | CM7: =CM4 -> 0 | CP7: =CP6 -> 6.7 | CQ7: =CQ4 -> 0.5 | CT7: =CT6 -> 4.9 | CU7: =CU4 -> 0.5 | DL7: Forstøbning
B8: Bredde [m] | D8: 9.8 | E8: Ribbe til venstre [m] | G8: 0.2 | H8: =IF(BZ79<0.005,"(Under bagatelgrænsen på 0,05 W/m²K)","") ->  | BA8: =DL23 -> Isolering | BB8: 0.1 | BC8: 0,035 | BD8: =IF(BB8=0, 0, IF(BC8=0, 0, BB8/BC8)) -> 2.857142857 | BI8: 0.15 | BJ8: 0.024 | BK8: 0.013 | BL8: 0.007 | BM8: 0.003 | BP8: 0.15 | BQ8: 0.024 | BR8: 0.013 | BS8: 0.007 | BT8: 0.003 | BV8: Rustfast stål | BW8: 5.5 | BX8: 0.014 | BY8: 0.013 | BZ8: 0.011 | CA8: 0.009 | CB8: 0.007 | CC8: 0.006 | CD8: 0.006 | CE8: 0.005 | CH8: =CH4 -> 0 | CI8: =CI4 -> 0 | CL8: =CL4 -> 0.5 | CM8: =CM4 -> 0 | CP8: =CP4 -> 5.7 | CQ8: =CQ4 -> 0.5 | CT8: =CT4 -> 4.4 | CU8: =CU4 -> 0.5 | DN8: Type/Beskrivelse | DP8: λ (Varmeledningsevne) | DR8: Type/Beskrivelse | DT8: λ (Varmeledningsevne) | DV8: Type/Beskrivelse | DX8: λ (Varmeledningsevne) | DZ8: Type/Beskrivelse | EB8: λ (Varmeledningsevne) | ED8: Type/Beskrivelse | EF8: λ (Varmeledningsevne) | EI8: =Materialer!B3 -> Type/Beskrivelse | EJ8: =Materialer!C3 -> λ (Varmeledningsevne) | EK8: =Materialer!E3 -> Type/Beskrivelse | EL8: =Materialer!F3 -> λ (Varmeledningsevne) | EM8: =Materialer!H3 -> Type/Beskrivelse | EN8: =Materialer!I3 -> λ (Varmeledningsevne) | ER8: SNIT | GF8: =B19 -> Konstruktion af ribbe omkring element | GG8: =B24 -> Konstruktion af ribbe omkring dør | GH8: =B29 -> Konstruktion af ribbe omkring vindue | GI8: =B34 -> Konstruktion af forstærkning
B9: Højde [m] | D9: 4 | E9: Ribbe til højre [m] | G9: 0.2 | H9: Antal bindere pr. m² | J9: 8 | L9: Antal | M9: 10 | N9: stk | O9: Varmestrømmens retning | Q9: Vandret | BA9: Isolering | BB9: 0.1 | BC9: 0,035 | BD9: =IF(BB9=0, 0, IF(BC9=0, 0, BB9/BC9)) -> 2.857142857 | BI9: 0.2 | BJ9: 0.027 | BK9: 0.017 | BL9: 0.012 | BM9: 0.008 | BP9: 0.2 | BQ9: 0.027 | BR9: 0.017 | BS9: 0.012 | BT9: 0.008 | BV9: Bronze | BW9: 3 | BX9: 0.016 | BY9: 0.014 | BZ9: 0.013 | CA9: 0.011 | CB9: 0.008 | CC9: 0.007 | CD9: 0.006 | CE9: 0.005 | CS9: Forstærkning 2 | CT9: =M23 -> 4.4 | CU9: =N23+CS12 -> 1.5 | DP9: [W/mK] | DT9: [W/mK] | DX9: [W/mK] | EB9: [W/mK] | EF9: [W/mK] | EI9: =Materialer!B4 -> 0 | EJ9: =Materialer!C4 -> [W/mK] | EK9: =Materialer!E4 -> 0 | EL9: =Materialer!F4 -> [W/mK] | EM9: =Materialer!H4 -> 0 | EN9: =Materialer!I4 -> [W/mK]
B10: Tykkelse [m] | D10: =SUM(F14:F18) -> 0.5 | E10: Ribbe i toppen [m] | G10: 0.2 | H10: Materiale for binder | J10: Bronze | L10: Diameter | M10: 5 | N10: mm | O10: Rsi | Q10: =BD6 -> 0.13 | R10: m²K/W | BA10: Isolering | BB10: 0.1 | BC10: 0,035 | BD10: 2.857142857 | BI10: 0.25 | BJ10: 0.028 | BK10: 0.019 | BL10: 0.015 | BM10: 0.011 | BP10: 0.25 | BQ10: 0.028 | BR10: 0.019 | BS10: 0.015 | BT10: 0.011 | BV10: Bronze | BW10: 4 | BX10: 0.029 | BY10: 0.026 | BZ10: 0.023 | CA10: 0.019 | CB10: 0.014 | CC10: 0.013 | CD10: 0.011 | CE10: 0.009 | CG10: Højre Ribbe | CH10: =D8-G9 -> 9.6 | CI10: 0 | CK10: Rib om dør1 | CL10: =CL4-L14 -> 0.4 | CM10: =G11 -> 0.2 | CO10: Rib om vindue1 | CP10: =CP4-L17 -> 5.6 | CQ10: =CQ4-L17 -> 0.4 | CT10: =CT9 -> 4.4 | CU10: =CU9+J23 -> 2 | DL10: Antal valgte lag | DN10: =Materialer!$H5 -> Beton med 1% armering | DO10: =IF(DN10=0,"",DN10) -> Beton med 1% armering | DP10: =Materialer!$I5 -> 2.54 | DQ10: =IF(DO10=$DL$15,DP10,"") -> 2.54 | DR10: =Materialer!$E5 -> Rockwool Kl. 37 | DS10: =IF(DR10=0,"",DR10) -> Rockwool Kl. 37 | DT10: =Materialer!$F5 -> 0.037 | DU10: =IF(DS10=$DL$16,DT10,"") ->  | DV10: =Materialer!$E5 -> Rockwool Kl. 37 | DW10: =IF(DV10=0,"",DV10) -> Rockwool Kl. 37 | DX10: =Materialer!$F5 -> 0.037 | DY10: =IF(DW10=$DL$17,DX10,"") ->  | DZ10: =Materialer!$E5 -> Rockwool Kl. 37 | EA10: =IF(DZ10=0,"",DZ10) -> Rockwool Kl. 37 | EB10: =Materialer!$F5 -> 0.037 | EC10: =IF(EA10=$DL$18,EB10,"") ->  | ED10: =Materialer!$B5 -> Beton med 1% armering | EE10: =IF(ED10=0,"",ED10) -> Beton med 1% armering | EF10: =Materialer!$C5 -> 2.44 | EG10: =IF(EE10=$DL$19,EF10,"") -> 2.44 | EI10: =Materialer!$B5 -> Beton med 1% armering | EJ10: =Materialer!$C5 -> 2.44 | EK10: =Materialer!$E5 -> Rockwool Kl. 37 | EL10: =Materialer!$F5 -> 0.037 | EM10: =Materialer!$H5 -> Beton med 1% armering | EN10: =Materialer!$I5 -> 2.54
B11: Lag i vægkonstruktion | E11: Ribbe i bunden [m] | G11: 0.2 | H11: Diameter [mm] | J11: 3 | L11: Materiale | M11: Rustfast stål | O11: Rse | Q11: =BD12 -> 0.04 | R11: m²K/W | BA11: Bagstøbning | BB11: 0.1 | BC11: 2,44 | BD11: =IF(BB11=0, 0, IF(BC11=0, 0, BB11/BC11)) -> 0.04098360656 | BV11: Bronze | BW11: 5 | BX11: 0.045 | BY11: 0.04 | BZ11: 0.036 | CA11: 0.03 | CB11: 0.022 | CC11: 0.02 | CD11: 0.018 | CE11: 0.015 | CH11: =CH10 -> 9.6 | CI11: =D9 -> 4 | CL11: =CL10 -> 0.4 | CM11: =J14+L14 -> 2.1 | CP11: =CP10 -> 5.6 | CQ11: =CQ10+L17+L17+J17 -> 1.6 | CS11: Tillæg til dør1 | CT11: =CT10+K23 -> 4.9 | CU11: =CU10 -> 2 | DL11: 5 | DN11: =Materialer!$H6 -> Beton med 2% armering | DO11: Beton med 2% armering | DP11: =Materialer!$I6 -> 2.76 | DQ11: =IF(DO11=$DL$15,DP11,"") ->  | DR11: =Materialer!$E6 -> Rockwool Kl.35 | DS11: =IF(DR11=0,"",DR11) -> Rockwool Kl.35 | DT11: =Materialer!$F6 -> 0.035 | DU11: =IF(DS11=$DL$16,DT11,"") -> 0.035 | DV11: =Materialer!$E6 -> Rockwool Kl.35 | DW11: =IF(DV11=0,"",DV11) -> Rockwool Kl.35 | DX11: =Materialer!$F6 -> 0.035 | DY11: =IF(DW11=$DL$17,DX11,"") -> 0.035 | DZ11: =Materialer!$E6 -> Rockwool Kl.35 | EA11: =IF(DZ11=0,"",DZ11) -> Rockwool Kl.35 | EB11: =Materialer!$F6 -> 0.035 | EC11: =IF(EA11=$DL$18,EB11,"") -> 0.035 | ED11: =Materialer!$B6 -> Beton med 2% armering | EE11: =IF(ED11=0,"",ED11) -> Beton med 2% armering | EF11: =Materialer!$C6 -> 2.64 | EG11: =IF(EE11=$DL$19,EF11,"") ->  | EI11: =Materialer!$B6 -> Beton med 2% armering | EJ11: =Materialer!$C6 -> 2.64 | EK11: =Materialer!$E6 -> Rockwool Kl.35 | EL11: =Materialer!$F6 -> 0.035 | EM11: =Materialer!$H6 -> Beton med 2% armering | EN11: =Materialer!$I6 -> 2.76 | ES11: Element | EX11: Døre | FC11: Vinduer | FH11: Forstærkninger
B12: Konstruktion af væg | F12: d | G12: λ | H12: Data for vinduer, døre og forstærkninger | O12: =BH69 -> Energitab fordelt på områder | Q12: =BO70 -> Andel af energi | R12: U-værdi | BA12: Udvendig overgangsisolans | BD12: 0.04 | BH12: Øvre værdier | BL12: Udtræk fra tabel | BO12: Øvre værdier | BS12: Udtræk fra tabel | BV12: Forzinket jern | BW12: 8 | BX12: 0.097 | BY12: 0.087 | BZ12: 0.078 | CA12: 0.064 | CB12: 0.049 | CC12: 0.043 | CD12: 0.039 | CE12: 0.032 | CH12: =D8 -> 9.8 | CI12: =CI11 -> 4 | CL12: =CL11+L14+L14+K14 -> 1.6 | CM12: =CM11 -> 2.1 | CP12: =CP11+L17+L17+K17 -> 6.8 | CQ12: =CQ11 -> 1.6 | CT12: =CT11 -> 4.9 | CU12: =CU9 -> 1.5 | DN12: =Materialer!$H7 -> Beton rho=1800 kg/m³ | DO12: Beton rho=1800 kg/m³ | DP12: =Materialer!$I7 -> 1.3 | DR12: =Materialer!$E7 -> Eps | DS12: Eps | DT12: =Materialer!$F7 -> 0.031 | DV12: =Materialer!$E7 -> Eps | DW12: Eps | DX12: =Materialer!$F7 -> 0.031 | DZ12: =Materialer!$E7 -> Eps | EA12: Eps | EB12: =Materialer!$F7 -> 0.031 | ED12: =Materialer!$B7 -> Beton rho=1800 kg/m³ | EE12: Beton rho=1800 kg/m³ | EF12: =Materialer!$C7 -> 1.2 | EI12: =Materialer!$B7 -> Beton rho=1800 kg/m³ | EJ12: =Materialer!$C7 -> 1.2 | EK12: =Materialer!$E7 -> Eps | EL12: =Materialer!$F7 -> 0.031 | EM12: =Materialer!$H7 -> Beton rho=1800 kg/m³ | EN12: =Materialer!$I7 -> 1.3 | ET12: X | EU12: Y | EV12: Ligger i snittet? | EY12: x | EZ12: y | FA12: Ligger i snittet? | FD12: x | FE12: y | FF12: Ligger i snittet? | FK12: Ligger i snittet? | FO12: Y-værdier | FP12: Y-værdier | FQ12: Dybde
F13: [m] | G13: [W/mK] | J13: h [m] | K13: b [m] | L13: ribbe [m] | M13: x [m] | N13: y [m] | Q13: =BO71 -> [%] | R13: [W/m²K] | BC13: ƩR | BD13: =SUM(BD6:BD12) -> 8.821782257 | BF13: =1/BD13 -> 0.113355779 | BH13: Isolering i væg | BI13: =IF(BW$64<BI7,BI7,IF(BW$64<BI8,BI8,IF(BW$64<BI9,BI9,IF(BW$64>=BI9,BI10,"FEJL")))) -> 0.25 | BL13: Min | BM13: Maks | BO13: Isolering i væg | BP13: =IF(BW$64<BP7,BP7,IF(BW$64<BP8,BP8,IF(BW$64<BP9,BP9,IF(BW$64>=BP9,BP10,"FEJL")))) -> 0.25 | BS13: Min | BT13: Maks | CH13: =CH12 -> 9.8 | CI13: =CI10 -> 0 | CL13: =CL12 -> 1.6 | CM13: =CM10 -> 0.2 | CP13: =CP12 -> 6.8 | CQ13: =CQ10 -> 0.4 | CT13: =CT9 -> 4.4 | CU13: =CU9 -> 1.5 | DN13: =Materialer!$H8 -> Beton rho=2100 kg/m³ | DO13: Beton rho=2100 kg/m³ | DP13: =Materialer!$I8 -> 1.65 | DR13: =Materialer!$E8 -> Pir | DS13: Pir | DT13: =Materialer!$F8 -> 0.023 | DV13: =Materialer!$E8 -> Pir | DW13: Pir | DX13: =Materialer!$F8 -> 0.023 | DZ13: =Materialer!$E8 -> Pir | EA13: Pir | EB13: =Materialer!$F8 -> 0.023 | ED13: =Materialer!$B8 -> Beton rho=2100 kg/m³ | EE13: Beton rho=2100 kg/m³ | EF13: =Materialer!$C8 -> 1.55 | EI13: =Materialer!$B8 -> Beton rho=2100 kg/m³ | EJ13: =Materialer!$C8 -> 1.55 | EK13: =Materialer!$E8 -> Pir | EL13: =Materialer!$F8 -> 0.023 | EM13: =Materialer!$H8 -> Beton rho=2100 kg/m³ | EN13: =Materialer!$I8 -> 1.65 | ES13: Venstre Ribbe | ET13: =CH4 -> 0 | EU13: 0 | EV13: =IF(MAX(ET13:ET17)>=$V$6,1,0)*IF(MIN(ET13:ET17)<=$V$6,1,0) -> 0 | EX13: Dør1 | EY13: =CL4 -> 0.5 | EZ13: 0 | FA13: =IF(MAX(EY13:EY17)>$V$6,1,0)*IF(MIN(EY13:EY17)<$V$6,1,0) -> 1 | FC13: Vindue1 | FD13: =CP4 -> 5.7 | FE13: 0.5 | FF13: =IF(MAX(FD13:FD17)>$V$6,1,0)*IF(MIN(FD13:FD17)<$V$6,1,0) -> 0 | FG13: =IF($FF$13>0,FE13,"") ->  | FH13: Forstærkning 1 | FI13: =CT4 -> 4.4 | FJ13: =CU4 -> 0.5 | FK13: =IF(MAX(FI13:FI17)>=$V$6,1,0)*IF(MIN(FI13:FI17)<=$V$6,1,0) -> 0 | FL13: =IF($FK$13>0,FJ13,"") ->  | FM13: Bundribbe | FN13: Bund | FO13: 0 | FP13: =IF(FO14>0,FO13,"") ->  | FQ13: =IF(FO14>0,F23,"") ->  | GA13: Type valgt | GB13: Eps | GD13: Isoleringer til ripper
F14: 0.1 | G14: =$DQ$10&$DQ$11&$DQ$12&$DQ$13&$DQ$14&$DQ$15&$DQ$16&$DQ$17&$DQ$18&$DQ$19&$DQ$20&$DQ$21&$DQ$22&$DQ$23&$DQ$24&$DQ$25&$DQ$26&$DQ$27&$DQ$28&$DQ$29&$DQ$30&$DQ$31&$DQ$32&$DQ$33&$DQ$34&$DQ$35&$DQ$36&$DQ$37&$DQ$38&$DQ$39&$DQ$40 -> 2,54 | J14: 2 | K14: 1 | L14: 0.1 | M14: 0.5 | O14: =BH73 -> Hovedelement | Q14: =BO73 -> 56.71280167 | R14: =BM73 -> 0.113355779 | BA14: Korrektion for murbindre | BH14: Ribbeisolering | BI14: =IF(F$22<BJ6,BJ6,IF(F$22<BK6,BK6,IF(F$22<BL6,BL6,IF(F$22>=BL6,BM6,"FEJL")))) -> 0.1 | BL14: =IF($BI$21<BK$6,BJ7,IF(AND($BI$21>=BK$6,$BI$21<BL$6),BK7,IF(AND($BI$21>=BL$6,$BI$21<BM$6),BL7,IF($BI$21>=BM$6,BM7,"FEJL")))) -> 0 | BM14: =IF($BI$14<BK$6,BJ7,IF(AND($BI$14>=BK$6,$BI$14<BL$6),BK7,IF(AND($BI$14>=BL$6,$BI$14<BM$6),BL7,IF($BI$14>=BM$6,BM7,"FEJL")))) -> 0 | BO14: Ribbeisolering | BP14: =IF(F$27<BQ6,BQ6,IF(F$27<BR6,BR6,IF(F$27<BS6,BS6,IF(F$27>=BS6,BT6,"FEJL")))) -> 0.1 | BS14: =IF($BP$21<BR$6,BQ7,IF(AND($BP$21>=BR$6,$BP$21<BS$6),BR7,IF(AND($BP$21>=BS$6,$BP$21<BT$6),BS7,IF($BP$21>=BT$6,BT7,"FEJL")))) -> 0 | BT14: =IF($BP$14<BR$6,BQ7,IF(AND($BP$14>=BR$6,$BP$14<BS$6),BR7,IF(AND($BP$14>=BS$6,$BP$14<BT$6),BS7,IF($BP$14>=BT$6,BT7,"FEJL")))) -> 0 | CH14: =CH10 -> 9.6 | CI14: =CI10 -> 0 | CP14: =CP10 -> 5.6 | CQ14: =CQ10 -> 0.4 | CS14: Forstærkning 3 | CT14: =M24 -> 4.4 | CU14: =N24+CS17 -> 2.5 | DK14: Materiale valgt | DN14: =Materialer!$H9 -> Beton rho=2400 kg/m³ | DO14: Beton rho=2400 kg/m³ | DP14: =Materialer!$I9 -> 2.2 | DR14: =Materialer!$E9 -> Spaceline | DS14: Spaceline | DT14: =Materialer!$F9 -> 0.04 | DV14: =Materialer!$E9 -> Spaceline | DW14: Spaceline | DX14: =Materialer!$F9 -> 0.04 | DZ14: =Materialer!$E9 -> Spaceline | EA14: Spaceline | EB14: =Materialer!$F9 -> 0.04 | ED14: =Materialer!$B9 -> Beton rho=2400 kg/m³ | EE14: Beton rho=2400 kg/m³ | EF14: =Materialer!$C9 -> 2.1 | EI14: =Materialer!$B9 -> Beton rho=2400 kg/m³ | EJ14: =Materialer!$C9 -> 2.1 | EK14: =Materialer!$E9 -> Spaceline | EL14: =Materialer!$F9 -> 0.04 | EM14: =Materialer!$H9 -> Beton rho=2400 kg/m³ | EN14: =Materialer!$I9 -> 2.2 | ET14: 0 | EU14: 4 | EY14: 0.5 | EZ14: 2 | FD14: 5.7 | FE14: 1.5 | FG14: =IF($FF$13>0,FE14,"") ->  | FI14: 4.4 | FJ14: 1 | FL14: =IF($FK$13>0,FJ14,"") ->  | FN14: Top | FO14: =G11*MAX(EV31:EV49) -> 0 | FP14: =IF(FO14>0,FO14,"") ->  | GA14: =GF8 -> Konstruktion af ribbe omkring element | GB14: Rockwool Kl. 37 | GD14: =IF(EK10=0,"",EK10) -> Rockwool Kl. 37 | GE14: =IF(EL10=0,"",EL10) -> 0.037 | GF14: =IF(GD14=$GB$14,GE14,"") -> 0.037 | GG14: =IF(GD14=$GB$15,GE14,"") -> 0.037 | GH14: =IF(GD14=$GB$16,GE14,"") -> 0.037 | GI14: =IF(GD14=$GB$17,GE14,"") -> 0.037
F15: 0.1 | G15: =$DU$10&$DU$11&$DU$12&$DU$13&$DU$14&$DU$15&$DU$16&$DU$17&$DU$18&$DU$19&$DU$20&$DU$21&$DU$22&$DU$23&$DU$24&$DU$25&$DU$26&$DU$27&$DU$28&$DU$29&$DU$30&$DU$31&$DU$32&$DU$33&$DU$34&$DU$35&$DU$36&$DU$37&$DU$38&$DU$39&$DU$40 -> 0,035 | J15: 2 | K15: 1 | L15: 0.1 | M15: 1.8 | O15: =BH75 -> Ribbe omkring element | Q15: =BO75 -> 20.82008259 | R15: =BM75 -> 0.1423123816 | BA15: ΔUf | BF15: =IF(BZ79<0.005,0,BZ79) -> 0.009248642546 | BH15: Y-aksen 1 | BI15: =IF(BI13<BI8,BL14,IF(AND(BI13>=BI8,BI13<BI9),BL15,IF(AND(BI13>=BI9,BI13<BI10),BL16,IF(BI13>=BI10,BL17,"FEJL")))) -> 0.011 | BL15: =IF($BI$21<BK$6,BJ8,IF(AND($BI$21>=BK$6,$BI$21<BL$6),BK8,IF(AND($BI$21>=BL$6,$BI$21<BM$6),BL8,IF($BI$21>=BM$6,BM8,"FEJL")))) -> 0.003 | BM15: =IF($BI$14<BK$6,BJ8,IF(AND($BI$14>=BK$6,$BI$14<BL$6),BK8,IF(AND($BI$14>=BL$6,$BI$14<BM$6),BL8,IF($BI$14>=BM$6,BM8,"FEJL")))) -> 0.003 | BO15: Y-aksen 1 | BP15: =IF(BP13<BP8,BS14,IF(AND(BP13>=BP8,BP13<BP9),BS15,IF(AND(BP13>=BP9,BP13<BP10),BS16,IF(BP13>=BP10,BS17,"FEJL")))) -> 0.011 | BS15: =IF($BP$21<BR$6,BQ8,IF(AND($BP$21>=BR$6,$BP$21<BS$6),BR8,IF(AND($BP$21>=BS$6,$BP$21<BT$6),BS8,IF($BP$21>=BT$6,BT8,"FEJL")))) -> 0.003 | BT15: =IF($BP$14<BR$6,BQ8,IF(AND($BP$14>=BR$6,$BP$14<BS$6),BR8,IF(AND($BP$14>=BS$6,$BP$14<BT$6),BS8,IF($BP$14>=BT$6,BT8,"FEJL")))) -> 0.003 | CK15: Dør2 | CL15: =M15 -> 1.8 | CM15: =CK18 -> 0 | CO15: Vindue2 | CP15: =M18 -> 5.7 | CQ15: =N18+CO18 -> 2 | CT15: =CT14 -> 4.4 | CU15: =CU14+J24 -> 3 | DK15: 1. lag | DL15: Beton med 1% armering | DN15: =Materialer!$H10 -> 0 | DP15: =Materialer!$I10 -> 0 | DR15: =Materialer!$E10 -> 0 | DT15: =Materialer!$F10 -> 0 | DV15: =Materialer!$E10 -> 0 | DX15: =Materialer!$F10 -> 0 | DZ15: =Materialer!$E10 -> 0 | EB15: =Materialer!$F10 -> 0 | ED15: =Materialer!$B10 -> 0 | EF15: =Materialer!$C10 -> 0 | EI15: =Materialer!$B10 -> 0 | EJ15: =Materialer!$C10 -> 0 | EK15: =Materialer!$E10 -> 0 | EL15: =Materialer!$F10 -> 0 | EM15: =Materialer!$H10 -> 0 | EN15: =Materialer!$I10 -> 0 | ET15: 0.2 | EU15: 4 | EY15: 1.5 | EZ15: 2 | FD15: 6.7 | FE15: 1.5 | FI15: 4.9 | FJ15: 1 | FM15: Topribbe | FN15: Bund | FO15: =EV25*EU25 -> 3.8 | FP15: =IF(FO15>0,FO15,"") -> 3.8 | FQ15: =IF(FO16>0,F23,"") -> 0.15 | GA15: =GG8 -> Konstruktion af ribbe omkring dør | GB15: Rockwool Kl. 37 | GD15: Rockwool Kl.35 | GE15: 0.035
F16: 0.1 | G16: =$DY$10&$DY$11&$DY$12&$DY$13&$DY$14&$DY$15&$DY$16&$DY$17&$DY$18&$DY$19&$DY$20&$DY$21&$DY$22&$DY$23&$DY$24&$DY$25&$DY$26&$DY$27&$DY$28&$DY$29&$DY$30&$DY$31&$DY$32&$DY$33&$DY$34&$DY$35&$DY$36&$DY$37&$DY$38&$DY$39&$DY$40 -> 0,035 | J16: 2 | K16: 1 | L16: 0.1 | M16: 3.1 | O16: =BH76 -> Ribbe omkring dør | Q16: 6.059576275 | R16: =BM76 -> 0.1423123816 | BE16: =BW44 -> 18.33 | BF16: =SUM(BF13,BF15) -> 0.1226044216 | BH16: Y-aksen 2 | BI16: =IF(BI13<BI8,BM14,IF(AND(BI13>=BI8,BI13<BI9),BM15,IF(AND(BI13>=BI9,BI13<BI10),BM16,IF(BI13>=BI10,BM17,"FEJL")))) -> 0.011 | BL16: =IF($BI$21<BK$6,BJ9,IF(AND($BI$21>=BK$6,$BI$21<BL$6),BK9,IF(AND($BI$21>=BL$6,$BI$21<BM$6),BL9,IF($BI$21>=BM$6,BM9,"FEJL")))) -> 0.008 | BM16: =IF($BI$14<BK$6,BJ9,IF(AND($BI$14>=BK$6,$BI$14<BL$6),BK9,IF(AND($BI$14>=BL$6,$BI$14<BM$6),BL9,IF($BI$14>=BM$6,BM9,"FEJL")))) -> 0.008 | BO16: Y-aksen 2 | BP16: =IF(BP13<BP8,BT14,IF(AND(BP13>=BP8,BP13<BP9),BT15,IF(AND(BP13>=BP9,BP13<BP10),BT16,IF(BP13>=BP10,BT17,"FEJL")))) -> 0.011 | BS16: 0.008 | BT16: 0.008 | CG16: Top Ribbe | CH16: =G8 -> 0.2 | CI16: =D9-G10 -> 3.8 | CL16: =CL15 -> 1.8 | CM16: =CM15+J15 -> 2 | CP16: =CP15 -> 5.7 | CQ16: =CQ15+J18 -> 3 | CS16: Tillæg til dør1 | CT16: =CT15+K24 -> 4.9 | CU16: =CU15 -> 3 | DK16: 2. lag | DL16: Rockwool Kl.35 | DN16: =Materialer!$H11 -> 0 | DP16: =Materialer!$I11 -> 0 | DR16: =Materialer!$E11 -> 0 | DT16: =Materialer!$F11 -> 0 | DV16: =Materialer!$E11 -> 0 | DX16: =Materialer!$F11 -> 0 | DZ16: =Materialer!$E11 -> 0 | EB16: =Materialer!$F11 -> 0 | ED16: =Materialer!$B11 -> 0 | EF16: =Materialer!$C11 -> 0 | EI16: =Materialer!$B11 -> 0 | EJ16: =Materialer!$C11 -> 0 | EK16: =Materialer!$E11 -> 0 | EL16: =Materialer!$F11 -> 0 | EM16: =Materialer!$H11 -> 0 | EN16: =Materialer!$I11 -> 0 | ET16: 0.2 | EU16: 0 | EY16: 1.5 | EZ16: 0 | FD16: 6.7 | FE16: 0.5 | FI16: 4.9 | FJ16: 0.5 | FN16: Top | FO16: =EV25*EU26 -> 4 | FP16: =IF(FO16>0,FO16,"") -> 4 | GA16: =GH8 -> Konstruktion af ribbe omkring vindue | GB16: Rockwool Kl. 37 | GD16: Eps | GE16: 0.031
F17: 0.1 | G17: =$EC$10&$EC$11&$EC$12&$EC$13&$EC$14&$EC$15&$EC$16&$EC$17&$EC$18&$EC$19&$EC$20&$EC$21&$EC$22&$EC$23&$EC$24&$EC$25&$EC$26&$EC$27&$EC$28&$EC$29&$EC$30&$EC$31&$EC$32&$EC$33&$EC$34&$EC$35&$EC$36&$EC$37&$EC$38&$EC$39&$EC$40 -> 0,035 | J17: 1 | K17: 1 | L17: 0.1 | M17: 5.7 | N17: 0.5 | O17: =BH77 -> Ribbe omkring vindue | Q17: 8.545556285 | R17: =BM77 -> 0.1423123816 | BA17: =B19 -> Konstruktion af ribbe omkring element | BH17: Y12 | BI17: =IF(BI15=BI16,BI15,BI15+((BI16-BI15)*((F22-BI$26)/(BI$27-BI$26)))) -> 0.011 | BL17: =IF($BI$21<BK$6,BJ10,IF(AND($BI$21>=BK$6,$BI$21<BL$6),BK10,IF(AND($BI$21>=BL$6,$BI$21<BM$6),BL10,IF($BI$21>=BM$6,BM10,"FEJL")))) -> 0.011 | BM17: =IF($BI$14<BK$6,BJ10,IF(AND($BI$14>=BK$6,$BI$14<BL$6),BK10,IF(AND($BI$14>=BL$6,$BI$14<BM$6),BL10,IF($BI$14>=BM$6,BM10,"FEJL")))) -> 0.011 | BO17: Y12 | BP17: =IF(BP15=BP16,BP15,BP15+((BP16-BP15)*((F27-BP$26)/(BP$27-BP$26)))) -> 0.011 | BS17: 0.011 | BT17: 0.011 | BV17: Udvælger værdi | CH17: =CH16 -> 0.2 | CI17: =CI16+G10 -> 4 | CK17: Tillæg til dør1 | CL17: =CL16+K15 -> 2.8 | CM17: =CM16 -> 2 | CO17: Tillæg til dør1 | CP17: =CP16+K18 -> 6.7 | CQ17: =CQ16 -> 3 | CT17: =CT16 -> 4.9 | CU17: =CU14 -> 2.5 | DK17: 3. lag | DL17: Rockwool Kl.35 | DN17: =Materialer!$H12 -> 0 | DP17: =Materialer!$I12 -> 0 | DR17: =Materialer!$E12 -> 0 | DT17: =Materialer!$F12 -> 0 | DV17: =Materialer!$E12 -> 0 | DX17: =Materialer!$F12 -> 0 | DZ17: =Materialer!$E12 -> 0 | EB17: =Materialer!$F12 -> 0 | ED17: =Materialer!$B12 -> 0 | EF17: =Materialer!$C12 -> 0 | EI17: =Materialer!$B12 -> 0 | EJ17: =Materialer!$C12 -> 0 | EK17: =Materialer!$E12 -> 0 | EL17: =Materialer!$F12 -> 0 | EM17: =Materialer!$H12 -> 0 | EN17: =Materialer!$I12 -> 0 | ET17: 0 | EU17: 0 | EY17: 0.5 | EZ17: 0 | FD17: 5.7 | FE17: 0.5 | FI17: 4.4 | FJ17: 0.5 | FM17: Højre/venstre ribbe | FN17: Top | FO17: =SUM(EV13,EV19)*D9 -> 0 | FP17: =IF(FO18>0,FO17,"") ->  | FQ17: =IF(FO17>0,F23,"") ->  | GA17: =GI8 -> Konstruktion af forstærkning | GB17: Rockwool Kl. 37 | GD17: Pir | GE17: 0.023
F18: 0.1 | G18: =$EG$10&$EG$11&$EG$12&$EG$13&$EG$14&$EG$15&$EG$16&$EG$17&$EG$18&$EG$19&$EG$20&$EG$21&$EG$22&$EG$23&$EG$24&$EG$25&$EG$26&$EG$27&$EG$28&$EG$29&$EG$30&$EG$31&$EG$32&$EG$33&$EG$34&$EG$35&$EG$36&$EG$37&$EG$38&$EG$39&$EG$40 -> 2,44 | J18: 1 | K18: 1 | L18: 0.1 | M18: 5.7 | N18: 2 | O18: =BH78 -> Forstærkning | Q18: 2.913257824 | R18: =BM78 -> 0.1423123816 | BA18: Indvendig overgangsisolans | BD18: =BD6 -> 0.13 | CH18: =D8-G9 -> 9.6 | CI18: =CI17 -> 4 | CL18: =CL17 -> 2.8 | CM18: =CM15 -> 0 | CP18: =CP17 -> 6.7 | CQ18: =CQ15 -> 2 | CT18: =CT14 -> 4.4 | CU18: =CU14 -> 2.5 | DK18: 4. lag | DL18: Rockwool Kl.35 | DN18: =Materialer!$H13 -> 0 | DP18: =Materialer!$I13 -> 0 | DR18: =Materialer!$E13 -> 0 | DT18: =Materialer!$F13 -> 0 | DV18: =Materialer!$E13 -> 0 | DX18: =Materialer!$F13 -> 0 | DZ18: =Materialer!$E13 -> 0 | EB18: =Materialer!$F13 -> 0 | ED18: =Materialer!$B13 -> 0 | EF18: =Materialer!$C13 -> 0 | EI18: =Materialer!$B13 -> 0 | EJ18: =Materialer!$C13 -> 0 | EK18: =Materialer!$E13 -> 0 | EL18: =Materialer!$F13 -> 0 | EM18: =Materialer!$H13 -> 0 | EN18: =Materialer!$I13 -> 0 | FH18: Forstærkning 2 | FI18: 4.4 | FJ18: 1.5 | FK18: =IF(MAX(FI18:FI22)>=$V$6,1,0)*IF(MIN(FI18:FI22)<=$V$6,1,0) -> 0 | FL18: =IF($FK$18>0,FJ18,"") ->  | FN18: Bund | FO18: 0 | FP18: =IF(FO18>0,FO18,"") ->  | GD18: Spaceline | GE18: 0.04
B19: Konstruktion af ribbe omkring element | F19: d | G19: λ | J19: 1 | K19: 1 | L19: 0.1 | M19: 7 | N19: 0.5 | O19: =BH81 -> Linjetab element | Q19: =BO81 -> 0 | BA19: =B21 -> Forstøbning | BB19: =F23 -> 0.15 | BC19: =G21 -> 2,54 | BD19: =IF(BB19=0, 0, IF(BC19=0, 0, BB19/BC19)) -> 0.05905511811 | BH19: Nedre værdier | BO19: Nedre værdier | BV19: Trådbinderetype | BW19: Diameter mm | BX19: =IF(Forside!J9=4,CB2,BX2) -> 8 bindere pr. m² | CC19: Værdi ud fra isoleringstykkelsen i m [W/m²K] | CH19: =CH18 -> 9.6 | CI19: =CI16 -> 3.8 | CL19: =CL15 -> 1.8 | CM19: =CM15 -> 0 | CP19: =CP15 -> 5.7 | CQ19: =CQ15 -> 2 | DK19: 5. lag | DL19: Beton med 1% armering | DN19: =Materialer!$H14 -> 0 | DP19: =Materialer!$I14 -> 0 | DR19: =Materialer!$E14 -> 0 | DT19: =Materialer!$F14 -> 0 | DV19: =Materialer!$E14 -> 0 | DX19: =Materialer!$F14 -> 0 | DZ19: =Materialer!$E14 -> 0 | EB19: =Materialer!$F14 -> 0 | ED19: =Materialer!$B14 -> 0 | EF19: =Materialer!$C14 -> 0 | EI19: =Materialer!$B14 -> 0 | EJ19: =Materialer!$C14 -> 0 | EK19: =Materialer!$E14 -> 0 | EL19: =Materialer!$F14 -> 0 | EM19: =Materialer!$H14 -> 0 | EN19: =Materialer!$I14 -> 0 | ES19: Højre Ribbe | ET19: =CH10 -> 9.6 | EU19: 0 | EV19: =IF(MAX(ET19:ET23)>=$V$6,1,0)*IF(MIN(ET19:ET23)<=$V$6,1,0) -> 0 | EX19: Rib om dør1 | EY19: =CL10 -> 0.4 | EZ19: 0.2 | FA19: =IF(MAX(EY19:EY23)>=$V$6,1,0)*IF(MIN(EY19:EY23)<=$V$6,1,0) -> 1 | FC19: Rib om vindue1 | FD19: =CP10 -> 5.6 | FE19: =CQ10 -> 0.4 | FF19: =IF(MAX(FD19:FD23)>=$V$6,1,0)*IF(MIN(FD19:FD23)<=$V$6,1,0) -> 0 | FG19: =IF($FF$19>0,FE19,"") ->  | FI19: 4.4 | FJ19: 2 | FL19: =IF($FK$18>0,FJ19,"") ->  | FM19: Dør | FN19: Bund | FO19: 0 | FP19: =IF(FO20>0,FO19,"") -> 0 | FQ19: =IF(FO20>0,F28,"") -> 0.15
F20: [m] | G20: [W/mK] | J20: 1 | K20: 1 | L20: 0.1 | M20: 7 | N20: 2 | O20: =BH82 -> Linjetab dør | Q20: =BO82 -> 0 | BA20: =B22 -> Isolering | BB20: 0.25 | BC20: 0.037 | BD20: =IF(BB20=0, 0, IF(BC20=0, 0, BB20/BC20)) -> 6.756756757 | BH20: Isolering i væg | BI20: =IF(BW$64<BI8,BI7,IF(BW$64<BI9,BI8,IF(BW$64<BI10,BI9,IF(BW$64>=BI10,BI10,"FEJL")))) -> 0.25 | BO20: Isolering i væg | BP20: =IF(BW$64<BP8,BP7,IF(BW$64<BP9,BP8,IF(BW$64<BP10,BP9,IF(BW$64>=BP10,BP10,"FEJL")))) -> 0.25 | BX20: Isoleringstykkelse [m] | CH20: =CH16 -> 0.2 | CI20: =CI16 -> 3.8 | DN20: =Materialer!$H15 -> 0 | DP20: =Materialer!$I15 -> 0 | DR20: =Materialer!$E15 -> 0 | DT20: =Materialer!$F15 -> 0 | DV20: =Materialer!$E15 -> 0 | DX20: =Materialer!$F15 -> 0 | DZ20: =Materialer!$E15 -> 0 | EB20: =Materialer!$F15 -> 0 | ED20: =Materialer!$B15 -> 0 | EF20: =Materialer!$C15 -> 0 | EI20: =Materialer!$B15 -> 0 | EJ20: =Materialer!$C15 -> 0 | EK20: =Materialer!$E15 -> 0 | EL20: =Materialer!$F15 -> 0 | EM20: =Materialer!$H15 -> 0 | EN20: =Materialer!$I15 -> 0 | ET20: 9.6 | EU20: 4 | EY20: 0.4 | EZ20: 2.1 | FD20: 5.6 | FE20: 1.6 | FG20: =IF($FF$19>0,FE20,"") ->  | FI20: 4.9 | FJ20: 2 | FN20: Top | FO20: =MAX(EZ14*FA13,EZ25*FA24,EZ36*FA35) -> 2 | FP20: =IF(FO20>0,FO20,"") -> 2
B21: Forstøbning | F21: =BW67 -> 0.1 | G21: =G14 -> 2,54 | J21: 1 | K21: 1 | L21: 0.1 | M21: 8.3 | N21: 0.5 | O21: =BH83 -> Linjetab vinduer | Q21: =BO83 -> 0 | BA21: =B23 -> Bagstøbning | BB21: =F21 -> 0.1 | BC21: 2.44 | BD21: =IF(BB21=0, 0, IF(BC21=0, 0, BB21/BC21)) -> 0.04098360656 | BH21: Ribbeisolering | BI21: =IF(F$22<BK$6,BJ6,IF(F$22<BL$6,BK6,IF(F$22<BM$6,BL6,IF(F$22>=BL6,BM6,"FEJL")))) -> 0.1 | BO21: Ribbeisolering | BP21: =IF(F$27<BR$6,BQ6,IF(F$27<BS$6,BR6,IF(F$27<BT$6,BS6,IF(F$27>=BS6,BT6,"FEJL")))) -> 0.1 | BX21: 0.1 | BY21: 0.125 | BZ21: 0.15 | CA21: 0.2 | CK21: Rib om dør2 | CL21: =CL15-L15 -> 1.7 | CM21: =G11 -> 0.2 | CO21: Rib om vindue2 | CP21: =CP15-L18 -> 5.6 | CQ21: =CQ15-L18 -> 1.9 | DK21: Type valgt | DN21: =Materialer!$H16 -> 0 | DP21: =Materialer!$I16 -> 0 | DR21: =Materialer!$E16 -> 0 | DT21: =Materialer!$F16 -> 0 | DV21: =Materialer!$E16 -> 0 | DX21: =Materialer!$F16 -> 0 | DZ21: =Materialer!$E16 -> 0 | EB21: =Materialer!$F16 -> 0 | ED21: =Materialer!$B16 -> 0 | EF21: =Materialer!$C16 -> 0 | EI21: =Materialer!$B16 -> 0 | EJ21: =Materialer!$C16 -> 0 | EK21: =Materialer!$E16 -> 0 | EL21: =Materialer!$F16 -> 0 | EM21: =Materialer!$H16 -> 0 | EN21: =Materialer!$I16 -> 0 | ET21: 9.8 | EU21: 4 | EY21: 1.6 | EZ21: 2.1 | FD21: 6.8 | FE21: 1.6 | FI21: 4.9 | FJ21: 1.5 | FN21: Ribbe | FO21: =MAX(EZ20*FA19,EZ31*FA30,EZ42*FA41) -> 2.1 | FP21: =IF(FO21>0,FO21,"") -> 2.1
B22: Isolering | F22: =$D$10-F23-F21 -> 0.25 | G22: =SUM($GF$14:$GF$44) -> 0.037 | J22: 0.5 | K22: 0.5 | M22: 4.4 | N22: 0.5 | O22: =BH84 -> Linjetab forstærkninger | Q22: =BO84 -> 0 | BA22: Udvendig overgangsisolans | BD22: =BD12 -> 0.04 | BH22: Y-aksen 1 | BI22: =IF(BI20<BI8,BL14,IF(AND(BI20>=BI8,BI20<BI9),BL15,IF(AND(BI20>=BI9,BI20<BI10),BL16,IF(BI20>=BI10,BL17,"FEJL")))) -> 0.011 | BO22: Y-aksen 1 | BP22: =IF(BP20<BP8,BS14,IF(AND(BP20>=BP8,BP20<BP9),BS15,IF(AND(BP20>=BP9,BP20<BP10),BS16,IF(BP20>=BP10,BS17,"FEJL")))) -> 0.011 | BV22: Plast | BX22: =IF(Forside!$J$9=4,CB5,BX5) -> 0 | BY22: =IF(Forside!$J$9=4,CC5,BY5) -> 0 | BZ22: =IF(Forside!$J$9=4,CD5,BZ5) -> 0 | CA22: =IF(Forside!$J$9=4,CE5,CA5) -> 0 | CC22: =IF(BW$64<=$CC$32,BX22,IF(AND(BW$64>$CC$32,BW$64<=$CC$33),BY22,IF(AND(BW$64>$CC$33,BW$64<=$CC$34),BZ22,IF(BW$64>$CC$34,CA22,"FEJL")))) -> 0 | CG22: Bund Ribbe1 | CH22: =IF(J14="",G8,G8) -> 0.2 | CI22: 0 | CL22: =CL21 -> 1.7 | CM22: =J15+L15 -> 2.1 | CP22: =CP21 -> 5.6 | CQ22: =CQ21+L18+L18+J18 -> 3.1 | DK22: 1. lag | DL22: Forstøbning | DN22: =Materialer!$H17 -> 0 | DP22: =Materialer!$I17 -> 0 | DR22: =Materialer!$E17 -> 0 | DT22: =Materialer!$F17 -> 0 | DV22: =Materialer!$E17 -> 0 | DX22: =Materialer!$F17 -> 0 | DZ22: =Materialer!$E17 -> 0 | EB22: =Materialer!$F17 -> 0 | ED22: =Materialer!$B17 -> 0 | EF22: =Materialer!$C17 -> 0 | EI22: =Materialer!$B17 -> 0 | EJ22: =Materialer!$C17 -> 0 | EK22: =Materialer!$E17 -> 0 | EL22: =Materialer!$F17 -> 0 | EM22: =Materialer!$H17 -> 0 | EN22: =Materialer!$I17 -> 0 | ET22: 9.8 | EU22: 0 | EY22: 1.6 | EZ22: 0.2 | FD22: 6.8 | FE22: 0.4 | FI22: 4.4 | FJ22: 1.5 | FM22: Øverste vindue | FN22: Ribbe | FO22: =MAX(FG19,FG30,FG41,FG52,FG63) -> 0 | FP22: =IF(FO23>0,FO22,"") ->  | FQ22: =IF(FO23>0,F33,"") -> 
B23: Bagstøbning | F23: 0.15 | G23: =BW69 -> 2.44 | J23: 0.5 | K23: 0.5 | M23: 4.4 | N23: 1.5 | O23: =BH86 -> Ophængsbøjler | Q23: =BO86 -> 0.3215556256 | BC23: ƩR | BD23: =SUM(BD18:BD22) -> 7.026795481 | BE23: =BW45+BW46+BW47+BW48 -> 5.36 | BF23: =1/BD23 -> 0.1423123816 | BH23: Y-aksen 2 | BI23: =IF(BI20<BI8,BM14,IF(AND(BI20>=BI8,BI20<BI9),BM15,IF(AND(BI20>=BI9,BI20<BI10),BM16,IF(BI20>=BI10,BM17,"FEJL")))) -> 0.011 | BO23: Y-aksen 2 | BP23: =IF(BP20<BP8,BT14,IF(AND(BP20>=BP8,BP20<BP9),BT15,IF(AND(BP20>=BP9,BP20<BP10),BT16,IF(BP20>=BP10,BT17,"FEJL")))) -> 0.011 | BV23: Rustfast stål | BW23: 3 | BX23: =IF(Forside!$J$9=4,CB6,BX6) -> 0.004 | BY23: =IF(Forside!$J$9=4,CC6,BY6) -> 0.004 | BZ23: =IF(Forside!$J$9=4,CD6,BZ6) -> 0.003 | CA23: =IF(Forside!$J$9=4,CE6,CA6) -> 0.003 | CC23: =IF(BW$64<=$CC$32,BX23,IF(AND(BW$64>$CC$32,BW$64<=$CC$33),BY23,IF(AND(BW$64>$CC$33,BW$64<=$CC$34),BZ23,IF(BW$64>$CC$34,CA23,"FEJL")))) -> 0.003 | CH23: =CH22 -> 0.2 | CI23: =G11 -> 0.2 | CL23: =CL22+L15+L15+K15 -> 2.9 | CM23: =CM22 -> 2.1 | CP23: =CP22+L18+L18+K18 -> 6.8 | CQ23: =CQ22 -> 3.1 | DK23: 2. lag | DL23: Isolering | DN23: =Materialer!$H18 -> 0 | DP23: =Materialer!$I18 -> 0 | DR23: =Materialer!$E18 -> 0 | DT23: =Materialer!$F18 -> 0 | DV23: =Materialer!$E18 -> 0 | DX23: =Materialer!$F18 -> 0 | DZ23: =Materialer!$E18 -> 0 | EB23: =Materialer!$F18 -> 0 | ED23: =Materialer!$B18 -> 0 | EF23: =Materialer!$C18 -> 0 | EI23: =Materialer!$B18 -> 0 | EJ23: =Materialer!$C18 -> 0 | EK23: =Materialer!$E18 -> 0 | EL23: =Materialer!$F18 -> 0 | EM23: =Materialer!$H18 -> 0 | EN23: =Materialer!$I18 -> 0 | ET23: 9.6 | EU23: 0 | FD23: 5.6 | FE23: 0.4 | FH23: Forstærkning 3 | FI23: 4.4 | FJ23: 2.5 | FK23: =IF(MAX(FI23:FI27)>=$V$6,1,0)*IF(MIN(FI23:FI27)<=$V$6,1,0) -> 0 | FL23: =IF($FK$23>0,FJ23,"") ->  | FN23: Bund | FO23: =MAX(FG13,FG24,FG35,FG46,FG57) -> 0 | FP23: =IF(FO23>0,FO23,"") -> 
B24: Konstruktion af ribbe omkring dør | F24: d | G24: λ | J24: 0.5 | K24: 0.5 | M24: 4.4 | N24: 2.5 | O24: =BH87 -> Murbindere | Q24: =BO87 -> 4.627169739 | BA24: =B24 -> Konstruktion af ribbe omkring dør | BH24: Y12 | BI24: =IF(BI22=BI23,BI22,BI22+((BI23-BI22)*((F22-BI$26)/(BI$27-BI$26)))) -> 0.011 | BO24: Y12 | BP24: =IF(BP22=BP23,BP22,BP22+((BP23-BP22)*((F27-BP$26)/(BP$27-BP$26)))) -> 0.011 | BV24: Rustfast stål | BW24: 4 | BX24: =IF(Forside!$J$9=4,CB7,BX7) -> 0.008 | BY24: =IF(Forside!$J$9=4,CC7,BY7) -> 0.007 | BZ24: =IF(Forside!$J$9=4,CD7,BZ7) -> 0.006 | CA24: =IF(Forside!$J$9=4,CE7,CA7) -> 0.005 | CC24: 0.005 | CH24: =IF(J14="",D8-G9,M14) -> 0.5 | CI24: =CI23 -> 0.2 | CL24: =CL23 -> 2.9 | CM24: =CM21 -> 0.2 | CP24: =CP23 -> 6.8 | CQ24: =CQ21 -> 1.9 | DK24: 3. lag | DL24: Isolering | DN24: =Materialer!$H19 -> 0 | DP24: =Materialer!$I19 -> 0 | DR24: =Materialer!$E19 -> 0 | DT24: =Materialer!$F19 -> 0 | DV24: =Materialer!$E19 -> 0 | DX24: =Materialer!$F19 -> 0 | DZ24: =Materialer!$E19 -> 0 | EB24: =Materialer!$F19 -> 0 | ED24: =Materialer!$B19 -> 0 | EF24: =Materialer!$C19 -> 0 | EI24: =Materialer!$B19 -> 0 | EJ24: =Materialer!$C19 -> 0 | EK24: =Materialer!$E19 -> 0 | EL24: =Materialer!$F19 -> 0 | EM24: =Materialer!$H19 -> 0 | EN24: =Materialer!$I19 -> 0 | EX24: Dør2 | EY24: =CL15 -> 1.8 | EZ24: 0 | FA24: =IF(MAX(EY24:EY28)>$V$6,1,0)*IF(MIN(EY24:EY28)<$V$6,1,0) -> 0 | FC24: Vindue2 | FD24: 5.7 | FE24: 2 | FF24: =IF(MAX(FD24:FD28)>$V$6,1,0)*IF(MIN(FD24:FD28)<$V$6,1,0) -> 0 | FG24: =IF($FF$24>0,FE24,"") ->  | FI24: 4.4 | FJ24: 3 | FL24: =IF($FK$23>0,FJ24,"") ->  | FN24: Top | FO24: =MAX(FG14,FG25,FG36,FG47,FG58) -> 0 | FP24: =IF(FO24>0,FO24,"") -> 
F25: [m] | G25: [W/mK] | BA25: Indvendig overgangsisolans | BD25: =BD6 -> 0.13 | BV25: Rustfast stål | BW25: 5.5 | BX25: =IF(Forside!$J$9=4,CB8,BX8) -> 0.014 | BY25: =IF(Forside!$J$9=4,CC8,BY8) -> 0.013 | BZ25: =IF(Forside!$J$9=4,CD8,BZ8) -> 0.011 | CA25: =IF(Forside!$J$9=4,CE8,CA8) -> 0.009 | CC25: 0.009 | CH25: =CH24 -> 0.5 | CI25: =CI22 -> 0 | CP25: =CP21 -> 5.6 | CQ25: =CQ21 -> 1.9 | DK25: 4. lag | DL25: Isolering | DN25: =Materialer!$H20 -> 0 | DP25: =Materialer!$I20 -> 0 | DR25: =Materialer!$E20 -> 0 | DT25: =Materialer!$F20 -> 0 | DV25: =Materialer!$E20 -> 0 | DX25: =Materialer!$F20 -> 0 | DZ25: =Materialer!$E20 -> 0 | EB25: =Materialer!$F20 -> 0 | ED25: =Materialer!$B20 -> 0 | EF25: =Materialer!$C20 -> 0 | EI25: =Materialer!$B20 -> 0 | EJ25: =Materialer!$C20 -> 0 | EK25: =Materialer!$E20 -> 0 | EL25: =Materialer!$F20 -> 0 | EM25: =Materialer!$H20 -> 0 | EN25: =Materialer!$I20 -> 0 | ES25: Top Ribbe | ET25: =CH16 -> 0.2 | EU25: 3.8 | EV25: =IF(MAX(ET25:ET29)>=$V$6,1,0)*IF(MIN(ET25:ET29)<=$V$6,1,0) -> 1 | EY25: 1.8 | EZ25: 2 | FD25: 5.7 | FE25: 3 | FG25: =IF($FF$24>0,FE25,"") ->  | FI25: 4.9 | FJ25: 3 | FL25: =IF($FK$13>0,FJ25,"") ->  | FN25: Ribbe | FO25: =MAX(FG20,FG31,FG42,FG53,FG64) -> 0 | FP25: =IF(FO25>0,FO25,"") -> 
B26: Forstøbning | F26: =BW67 -> 0.1 | G26: =G14 -> 2,54 | BA26: =B26 -> Forstøbning | BB26: =F28 -> 0.15 | BC26: =G26 -> 2,54 | BD26: =IF(BB26=0, 0, IF(BC26=0, 0, BB26/BC26)) -> 0.05905511811 | BH26: X-aksen 1 | BI26: =BI21 -> 0.1 | BO26: X-aksen 1 | BP26: =BP21 -> 0.1 | BV26: Bronze | BW26: 3 | BX26: =IF(Forside!$J$9=4,CB9,BX9) -> 0.016 | BY26: =IF(Forside!$J$9=4,CC9,BY9) -> 0.014 | BZ26: =IF(Forside!$J$9=4,CD9,BZ9) -> 0.013 | CA26: =IF(Forside!$J$9=4,CE9,CA9) -> 0.011 | CC26: 0.011 | CH26: =CH22 -> 0.2 | CI26: =CI22 -> 0 | CK26: Dør3 | CL26: =M16 -> 3.1 | CM26: =CK29 -> 0 | CO26: Vindue3 | CP26: =M19 -> 7 | CQ26: =N19+CO29 -> 0.5 | DK26: 5. lag | DL26: Bagstøbning | DN26: =Materialer!$H21 -> 0 | DP26: =Materialer!$I21 -> 0 | DR26: =Materialer!$E21 -> 0 | DT26: =Materialer!$F21 -> 0 | DV26: =Materialer!$E21 -> 0 | DX26: =Materialer!$F21 -> 0 | DZ26: =Materialer!$E21 -> 0 | EB26: =Materialer!$F21 -> 0 | ED26: =Materialer!$B21 -> 0 | EF26: =Materialer!$C21 -> 0 | EI26: =Materialer!$B21 -> 0 | EJ26: =Materialer!$C21 -> 0 | EK26: =Materialer!$E21 -> 0 | EL26: =Materialer!$F21 -> 0 | EM26: =Materialer!$H21 -> 0 | EN26: =Materialer!$I21 -> 0 | ET26: 0.2 | EU26: 4 | EY26: 2.8 | EZ26: 2 | FD26: 6.7 | FE26: 3 | FI26: 4.9 | FJ26: 2.5 | FL26: =IF($FK$13>0,FJ26,"") ->  | FM26: Nederste vindue | FN26: Ribbe | FO26: =MIN(FG19,FG30,FG41,FG52,FG63) -> 0 | FP26: =IF(FO27>0,FO26,"") ->  | FQ26: =IF(FO27>0,F33,"") -> 
B27: Isolering | F27: =$D$10-F28-F26 -> 0.25 | G27: =SUM($GG$14:$GG$44) -> 0.037 | BA27: =B27 -> Isolering | BB27: 0.25 | BC27: 0.037 | BD27: =IF(BB27=0, 0, IF(BC27=0, 0, BB27/BC27)) -> 6.756756757 | BH27: X-aksen 2 | BI27: =BI14 -> 0.1 | BO27: X-aksen 2 | BP27: =BP14 -> 0.1 | BV27: Bronze | BW27: 4 | BX27: =IF(Forside!$J$9=4,CB10,BX10) -> 0.029 | BY27: =IF(Forside!$J$9=4,CC10,BY10) -> 0.026 | BZ27: =IF(Forside!$J$9=4,CD10,BZ10) -> 0.023 | CA27: =IF(Forside!$J$9=4,CE10,CA10) -> 0.019 | CC27: 0.019 | CL27: =CL26 -> 3.1 | CM27: =CM26+J16 -> 2 | CP27: =CP26 -> 7 | CQ27: =CQ26+J19 -> 1.5 | DN27: =Materialer!$H22 -> 0 | DP27: =Materialer!$I22 -> 0 | DR27: =Materialer!$E22 -> 0 | DT27: =Materialer!$F22 -> 0 | DV27: =Materialer!$E22 -> 0 | DX27: =Materialer!$F22 -> 0 | DZ27: =Materialer!$E22 -> 0 | EB27: =Materialer!$F22 -> 0 | ED27: =Materialer!$B22 -> 0 | EF27: =Materialer!$C22 -> 0 | EI27: =Materialer!$B22 -> 0 | EJ27: =Materialer!$C22 -> 0 | EK27: =Materialer!$E22 -> 0 | EL27: =Materialer!$F22 -> 0 | EM27: =Materialer!$H22 -> 0 | EN27: =Materialer!$I22 -> 0 | ET27: 9.6 | EU27: 4 | EY27: 2.8 | EZ27: 0 | FD27: 6.7 | FE27: 2 | FI27: 4.4 | FJ27: 2.5 | FL27: =IF($FK$13>0,FJ27,"") ->  | FN27: Bund | FO27: =MIN(FG13,FG24,FG35,FG46,FG57) -> 0 | FP27: =IF(FO27>0,FO27,"") -> 
B28: Bagstøbning | F28: 0.15 | G28: =BW69 -> 2.44 | BA28: =B28 -> Bagstøbning | BB28: =F26 -> 0.1 | BC28: 2.44 | BD28: =IF(BB28=0, 0, IF(BC28=0, 0, BB28/BC28)) -> 0.04098360656 | BV28: Bronze | BW28: 5 | BX28: =IF(Forside!$J$9=4,CB11,BX11) -> 0.045 | BY28: =IF(Forside!$J$9=4,CC11,BY11) -> 0.04 | BZ28: =IF(Forside!$J$9=4,CD11,BZ11) -> 0.036 | CA28: =IF(Forside!$J$9=4,CE11,CA11) -> 0.03 | CC28: 0.03 | CG28: Bund Ribbe2 | CH28: =IF(J14="",0,M14+K14) -> 1.5 | CI28: 0 | CK28: Tillæg til dør1 | CL28: =CL27+K16 -> 4.1 | CM28: =CM27 -> 2 | CO28: Tillæg til dør1 | CP28: =CP27+K19 -> 8 | CQ28: =CQ27 -> 1.5 | DN28: =Materialer!$H23 -> 0 | DP28: =Materialer!$I23 -> 0 | DR28: =Materialer!$E23 -> 0 | DT28: =Materialer!$F23 -> 0 | DV28: =Materialer!$E23 -> 0 | DX28: =Materialer!$F23 -> 0 | DZ28: =Materialer!$E23 -> 0 | EB28: =Materialer!$F23 -> 0 | ED28: =Materialer!$B23 -> 0 | EF28: =Materialer!$C23 -> 0 | EI28: =Materialer!$B23 -> 0 | EJ28: =Materialer!$C23 -> 0 | EK28: =Materialer!$E23 -> 0 | EL28: =Materialer!$F23 -> 0 | EM28: =Materialer!$H23 -> 0 | EN28: =Materialer!$I23 -> 0 | ET28: 9.6 | EU28: 3.8 | EY28: 1.8 | EZ28: 0 | FD28: 5.7 | FE28: 2 | FN28: Top | FO28: =MIN(FG14,FG25,FG36,FG47,FG58) -> 0
B29: Konstruktion af ribbe omkring vindue | F29: d | G29: λ | BA29: Udvendig overgangsisolans | BD29: =BD22 -> 0.04 | BV29: Forzinket jern | BW29: 8 | BX29: =IF(Forside!$J$9=4,CB12,BX12) -> 0.097 | BY29: =IF(Forside!$J$9=4,CC12,BY12) -> 0.087 | BZ29: =IF(Forside!$J$9=4,CD12,BZ12) -> 0.078 | CA29: =IF(Forside!$J$9=4,CE12,CA12) -> 0.064 | CC29: 0.064 | CH29: =CH28 -> 1.5 | CI29: =IF(J14="",0,G11) -> 0.2 | CL29: =CL28 -> 4.1 | CM29: =CM26 -> 0 | CP29: =CP28 -> 8 | CQ29: =CQ26 -> 0.5 | DN29: =Materialer!$H24 -> 0 | DP29: =Materialer!$I24 -> 0 | DR29: =Materialer!$E24 -> 0 | DT29: =Materialer!$F24 -> 0 | DV29: =Materialer!$E24 -> 0 | DX29: =Materialer!$F24 -> 0 | DZ29: =Materialer!$E24 -> 0 | EB29: =Materialer!$F24 -> 0 | ED29: =Materialer!$B24 -> 0 | EF29: =Materialer!$C24 -> 0 | EI29: =Materialer!$B24 -> 0 | EJ29: =Materialer!$C24 -> 0 | EK29: =Materialer!$E24 -> 0 | EL29: =Materialer!$F24 -> 0 | EM29: =Materialer!$H24 -> 0 | EN29: =Materialer!$I24 -> 0 | ET29: 0.2 | EU29: 3.8 | FI29: Forstærkninger i snit? | FK29: =FK23+FK18+FK13 -> 0 | FN29: Ribbe | FO29: =MIN(FG20,FG31,FG42,FG53,FG64) -> 0
F30: [m] | G30: [W/mK] | BC30: ƩR | BD30: =SUM(BD25:BD29) -> 7.026795481 | BE30: =BW50 -> 1.56 | BF30: =1/BD30 -> 0.1423123816 | CH30: =IF(J14="",0,IF(J15="",D8-G9,M15)) -> 1.8 | CI30: =CI29 -> 0.2 | CL30: =CL26 -> 3.1 | CM30: =CM26 -> 0 | CP30: =CP26 -> 7 | CQ30: =CQ26 -> 0.5 | DN30: =Materialer!$H25 -> 0 | DP30: =Materialer!$I25 -> 0 | DR30: =Materialer!$E25 -> 0 | DT30: =Materialer!$F25 -> 0 | DV30: =Materialer!$E25 -> 0 | DX30: =Materialer!$F25 -> 0 | DZ30: =Materialer!$E25 -> 0 | EB30: =Materialer!$F25 -> 0 | ED30: =Materialer!$B25 -> 0 | EF30: =Materialer!$C25 -> 0 | EI30: =Materialer!$B25 -> 0 | EJ30: =Materialer!$C25 -> 0 | EK30: =Materialer!$E25 -> 0 | EL30: =Materialer!$F25 -> 0 | EM30: =Materialer!$H25 -> 0 | EN30: =Materialer!$I25 -> 0 | EX30: Rib om dør2 | EY30: =CL21 -> 1.7 | EZ30: 0.2 | FA30: =IF(MAX(EY30:EY34)>=$V$6,1,0)*IF(MIN(EY30:EY34)<=$V$6,1,0) -> 0 | FC30: Rib om vindue2 | FD30: =CP21 -> 5.6 | FE30: =CQ21 -> 1.9 | FF30: =IF(MAX(FD30:FD34)>=$V$6,1,0)*IF(MIN(FD30:FD34)<=$V$6,1,0) -> 0 | FG30: =IF($FF$30>0,FE30,"") ->  | FM30: Øverste forstærkning | FN30: Top | FO30: =MAX(FL24,FL19,FL14) -> 0 | FQ30: =IF(FO30>0,F38,"") -> 
B31: Forstøbning | F31: =BW67 -> 0.1 | G31: =G14 -> 2,54 | BA31: =B29 -> Konstruktion af ribbe omkring vindue | BV31: Dropdown | CC31: Grænser | CH31: =CH30 -> 1.8 | CI31: =CI28 -> 0 | DN31: =Materialer!$H26 -> 0 | DP31: =Materialer!$I26 -> 0 | DR31: =Materialer!$E26 -> 0 | DT31: =Materialer!$F26 -> 0 | DV31: =Materialer!$E26 -> 0 | DX31: =Materialer!$F26 -> 0 | DZ31: =Materialer!$E26 -> 0 | EB31: =Materialer!$F26 -> 0 | ED31: =Materialer!$B26 -> 0 | EF31: =Materialer!$C26 -> 0 | EI31: =Materialer!$B26 -> 0 | EJ31: =Materialer!$C26 -> 0 | EK31: =Materialer!$E26 -> 0 | EL31: =Materialer!$F26 -> 0 | EM31: =Materialer!$H26 -> 0 | EN31: =Materialer!$I26 -> 0 | ES31: Bund Ribbe1 | ET31: =CH22 -> 0.2 | EU31: 0 | EV31: =IF(MAX(ET31:ET35)>=$V$6,1,0)*IF(MIN(ET31:ET35)<=$V$6,1,0) -> 0 | EY31: 1.7 | EZ31: 2.1 | FD31: 5.6 | FE31: 3.1 | FG31: =IF($FF$30>0,FE31,"") ->  | FN31: Bund | FO31: =MAX(FL23,FL18,FL13) -> 0
B32: Isolering | F32: =$D$10-F33-F31 -> 0.25 | G32: =SUM($GH$14:$GH$44) -> 0.037 | BA32: Indvendig overgangsisolans | BD32: =BD6 -> 0.13 | BH32: Ψ | BI32: =IF(F22>0.1,0,IF(BI13=BI20,BI17,(BI24*(BI13-BW$64)+BI17*(BW$64-BI20))/(BI13-BI20))) -> 0 | BO32: Ψ | BP32: =IF(F27>0.1,0,IF(BP13=BP20,BP17,(BP24*(BP13-BW$64)+BP17*(BW$64-BP20))/(BP13-BP20))) -> 0 | CC32: =(BX21+BY21)/2 -> 0.1125 | CH32: =CH28 -> 1.5 | CI32: =CI28 -> 0 | CK32: Rib om dør3 | CL32: =CL26-L16 -> 3 | CM32: =G11 -> 0.2 | CO32: Rib om vindue3 | CP32: =CP26-L19 -> 6.9 | CQ32: =CQ26-L19 -> 0.4 | DN32: =Materialer!$H27 -> 0 | DP32: =Materialer!$I27 -> 0 | DR32: =Materialer!$E27 -> 0 | DT32: =Materialer!$F27 -> 0 | DV32: =Materialer!$E27 -> 0 | DX32: =Materialer!$F27 -> 0 | DZ32: =Materialer!$E27 -> 0 | EB32: =Materialer!$F27 -> 0 | ED32: =Materialer!$B27 -> 0 | EF32: =Materialer!$C27 -> 0 | EI32: =Materialer!$B27 -> 0 | EJ32: =Materialer!$C27 -> 0 | EK32: =Materialer!$E27 -> 0 | EL32: =Materialer!$F27 -> 0 | EM32: =Materialer!$H27 -> 0 | EN32: =Materialer!$I27 -> 0 | ET32: 0.2 | EU32: 0.2 | EY32: 2.9 | EZ32: 2.1 | FD32: 6.8 | FE32: 3.1 | FM32: Nederste forstærkning | FN32: Top | FO32: =MIN(FL14,FL19,FL24) -> 0 | FQ32: =IF(FO32>0.1,F38,"") -> 
B33: Bagstøbning | F33: 0.15 | G33: =BW69 -> 2.44 | BA33: =B31 -> Forstøbning | BB33: =F33 -> 0.15 | BC33: =G31 -> 2,54 | BD33: =IF(BB33=0, 0, IF(BC33=0, 0, BB33/BC33)) -> 0.05905511811 | BV33: 4 | BW33: Plast | BX33: 0 | BY33: =IF(Forside!$J$10="Plast",BX33,"") ->  | CC33: =(BY21+BZ21)/2 -> 0.1375 | CL33: =CL32 -> 3 | CM33: =J16+L16 -> 2.1 | CP33: =CP32 -> 6.9 | CQ33: =CQ32+L19+L19+J19 -> 1.6 | DN33: =Materialer!$H28 -> 0 | DP33: =Materialer!$I28 -> 0 | DR33: =Materialer!$E28 -> 0 | DT33: =Materialer!$F28 -> 0 | DV33: =Materialer!$E28 -> 0 | DX33: =Materialer!$F28 -> 0 | DZ33: =Materialer!$E28 -> 0 | EB33: =Materialer!$F28 -> 0 | ED33: =Materialer!$B28 -> 0 | EF33: =Materialer!$C28 -> 0 | EI33: =Materialer!$B28 -> 0 | EJ33: =Materialer!$C28 -> 0 | EK33: =Materialer!$E28 -> 0 | EL33: =Materialer!$F28 -> 0 | EM33: =Materialer!$H28 -> 0 | EN33: =Materialer!$I28 -> 0 | ET33: 0.5 | EU33: 0.2 | EY33: 2.9 | EZ33: 0.2 | FD33: 6.8 | FE33: 1.9 | FN33: Bund | FO33: =MIN(FL13,FL18,FL23) -> 0
B34: Konstruktion af forstærkning | F34: d | G34: λ | BA34: =B32 -> Isolering | BB34: 0.25 | BC34: 0.037 | BD34: =IF(BB34=0, 0, IF(BC34=0, 0, BB34/BC34)) -> 6.756756757 | BH34: Ribbe omkring vindue | BO34: Ribbe omkring forstrækning | BV34: 8 | BW34: Rustfast stål | BX34: 3 | BY34: =IF(Forside!$J$10="Rustfast stål",BX34,IF(Forside!$J$10="Bronze",BX34,"")) -> 3 | CC34: =(BZ21+CA21)/2 -> 0.175 | CG34: Bund Ribbe3 | CH34: =IF(J14="",0,IF(J15="",0,M15+K15)) -> 2.8 | CI34: 0 | CL34: =CL33+L16+L16+K16 -> 4.2 | CM34: =CM33 -> 2.1 | CP34: =CP33+L19+L19+K19 -> 8.1 | CQ34: =CQ33 -> 1.6 | DN34: =Materialer!$H29 -> 0 | DP34: =Materialer!$I29 -> 0 | DR34: =Materialer!$E29 -> 0 | DT34: =Materialer!$F29 -> 0 | DV34: =Materialer!$E29 -> 0 | DX34: =Materialer!$F29 -> 0 | DZ34: =Materialer!$E29 -> 0 | EB34: =Materialer!$F29 -> 0 | ED34: =Materialer!$B29 -> 0 | EF34: =Materialer!$C29 -> 0 | EI34: =Materialer!$B29 -> 0 | EJ34: =Materialer!$C29 -> 0 | EK34: =Materialer!$E29 -> 0 | EL34: =Materialer!$F29 -> 0 | EM34: =Materialer!$H29 -> 0 | EN34: =Materialer!$I29 -> 0 | ET34: 0.5 | EU34: 0 | FD34: 5.6 | FE34: 1.9 | FM34: =BV66 -> Bagstøbningstykkelse | FQ34: =BW66 -> 0.1
F35: [m] | G35: [W/mK] | BA35: =B33 -> Bagstøbning | BB35: =F31 -> 0.1 | BC35: 2.44 | BD35: =IF(BB35=0, 0, IF(BC35=0, 0, BB35/BC35)) -> 0.04098360656 | BW35: Bronze | BX35: 4 | BY35: =IF(Forside!$J$10="Rustfast stål",BX35,IF(Forside!$J$10="Bronze",BX35,"")) -> 4 | CH35: =CH34 -> 2.8 | CI35: =IF(J14="",0,IF(J15="",0,G11)) -> 0.2 | CL35: =CL34 -> 4.2 | CM35: =CM32 -> 0.2 | CP35: =CP34 -> 8.1 | CQ35: =CQ32 -> 0.4 | DN35: =Materialer!$H30 -> 0 | DP35: =Materialer!$I30 -> 0 | DR35: =Materialer!$E30 -> 0 | DT35: =Materialer!$F30 -> 0 | DV35: =Materialer!$E30 -> 0 | DX35: =Materialer!$F30 -> 0 | DZ35: =Materialer!$E30 -> 0 | EB35: =Materialer!$F30 -> 0 | ED35: =Materialer!$B30 -> 0 | EF35: =Materialer!$C30 -> 0 | EI35: =Materialer!$B30 -> 0 | EJ35: =Materialer!$C30 -> 0 | EK35: =Materialer!$E30 -> 0 | EL35: =Materialer!$F30 -> 0 | EM35: =Materialer!$H30 -> 0 | EN35: =Materialer!$I30 -> 0 | ET35: 0.2 | EU35: 0 | EX35: Dør3 | EY35: =CL26 -> 3.1 | EZ35: 0 | FA35: =IF(MAX(EY35:EY39)>$V$6,1,0)*IF(MIN(EY35:EY39)<$V$6,1,0) -> 0 | FC35: Vindue3 | FD35: 7 | FE35: 0.5 | FF35: =IF(MAX(FD35:FD39)>$V$6,1,0)*IF(MIN(FD35:FD39)<$V$6,1,0) -> 0 | FG35: =IF($FF$35>0,FE35,"") ->  | FM35: =BV64 -> Isoleringstykkelse | FQ35: =BW64 -> 0.3
B36: Forstøbning | F36: =BW67 -> 0.1 | G36: =G14 -> 2,54 | BA36: Udvendig overgangsisolans | BD36: =BD12 -> 0.04 | BW36: Forzinket jern | BX36: 5 | BY36: =IF(Forside!$J$10="Bronze",BX36,"") -> 5 | CH36: =IF(J14="",0,IF(J15="",0,IF(J16="",D8-G9,M16))) -> 3.1 | CI36: =CI35 -> 0.2 | CP36: =CP32 -> 6.9 | CQ36: =CQ32 -> 0.4 | DN36: =Materialer!$H31 -> 0 | DP36: =Materialer!$I31 -> 0 | DR36: =Materialer!$E31 -> 0 | DT36: =Materialer!$F31 -> 0 | DV36: =Materialer!$E31 -> 0 | DX36: =Materialer!$F31 -> 0 | DZ36: =Materialer!$E31 -> 0 | EB36: =Materialer!$F31 -> 0 | ED36: =Materialer!$B31 -> 0 | EF36: =Materialer!$C31 -> 0 | EI36: =Materialer!$B31 -> 0 | EJ36: =Materialer!$C31 -> 0 | EK36: =Materialer!$E31 -> 0 | EL36: =Materialer!$F31 -> 0 | EM36: =Materialer!$H31 -> 0 | EN36: =Materialer!$I31 -> 0 | EY36: 3.1 | EZ36: 2 | FD36: 7 | FE36: 1.5 | FG36: =IF($FF$35>0,FE36,"") ->  | FM36: =BV67 -> Forstøbningstykkelse | FQ36: =BW67 -> 0.1
B37: Isolering | F37: =$D$10-F38-F36 -> 0.25 | G37: =SUM($GI$14:$GI$44) -> 0.037 | BC37: ƩR | BD37: =SUM(BD32:BD36) -> 7.026795481 | BE37: =BW49 -> 2.2 | BF37: =1/BD37 -> 0.1423123816 | BJ37: Ribbeisolering | BQ37: Ribbeisolering | BX37: 5.5 | BY37: =IF(Forside!$J$10="Rustfast stål",BX37,"") ->  | CB37: Endelig tillægsværdi | CH37: =CH36 -> 3.1 | CI37: =CI34 -> 0 | CO37: Vindue4 | CP37: =M20 -> 7 | CQ37: =N20+CO40 -> 2 | DN37: =Materialer!$H32 -> 0 | DP37: =Materialer!$I32 -> 0 | DR37: =Materialer!$E32 -> 0 | DT37: =Materialer!$F32 -> 0 | DV37: =Materialer!$E32 -> 0 | DX37: =Materialer!$F32 -> 0 | DZ37: =Materialer!$E32 -> 0 | EB37: =Materialer!$F32 -> 0 | ED37: =Materialer!$B32 -> 0 | EF37: =Materialer!$C32 -> 0 | EI37: =Materialer!$B32 -> 0 | EJ37: =Materialer!$C32 -> 0 | EK37: =Materialer!$E32 -> 0 | EL37: =Materialer!$F32 -> 0 | EM37: =Materialer!$H32 -> 0 | EN37: =Materialer!$I32 -> 0 | ES37: Bund Ribbe2 | ET37: =CH28 -> 1.5 | EU37: 0 | EV37: =IF(MAX(ET37:ET41)>=$V$6,1,0)*IF(MIN(ET37:ET41)<=$V$6,1,0) -> 0 | EY37: 4.1 | EZ37: 2 | FD37: 8 | FE37: 1.5 | FQ37: =SUM(FQ34:FQ36) -> 0.5
B38: Bagstøbning | F38: 0.15 | G38: =BW69 -> 2.44 | BA38: =B34 -> Konstruktion af forstærkning | BJ38: 0.025 | BK38: 0.05 | BL38: 0.075 | BM38: 0.1 | BQ38: 0.025 | BR38: 0.05 | BS38: 0.075 | BT38: 0.1 | BX38: 8 | BY38: =IF(Forside!$J$10="Forzinket jern",BX38,"") ->  | CB38: =IF(AND(J10="Plast",J11=0),CC22,IF(AND(J10="Rustfast stål",J11=3),CC23,IF(AND(J10="Rustfast stål",J11=4),CC24,IF(AND(J10="Rustfast stål",J11=5.5),CC25,IF(AND(J10="Bronze",J11=3),CC26,IF(AND(J10="Bronze",J11=4),CC27,IF(AND(J10="Bronze",J11=5),CC28,IF(AND(J10="Forzinket jern",J11=8),CC29,"Forkert indtastet værdi")))))))) -> 0.011 | CC38: W/m²K | CH38: =CH34 -> 2.8 | CI38: =CI34 -> 0 | CP38: =CP37 -> 7 | CQ38: =CQ37+J20 -> 3 | DN38: =Materialer!$H33 -> 0 | DP38: =Materialer!$I33 -> 0 | DR38: =Materialer!$E33 -> 0 | DT38: =Materialer!$F33 -> 0 | DV38: =Materialer!$E33 -> 0 | DX38: =Materialer!$F33 -> 0 | DZ38: =Materialer!$E33 -> 0 | EB38: =Materialer!$F33 -> 0 | ED38: =Materialer!$B33 -> 0 | EF38: =Materialer!$C33 -> 0 | EI38: =Materialer!$B33 -> 0 | EJ38: =Materialer!$C33 -> 0 | EK38: =Materialer!$E33 -> 0 | EL38: =Materialer!$F33 -> 0 | EM38: =Materialer!$H33 -> 0 | EN38: =Materialer!$I33 -> 0 | ET38: 1.5 | EU38: 0.2 | EY38: 4.1 | EZ38: 0 | FD38: 8 | FE38: 0.5 | FQ38: 0
F39: Endelig U-Værdi | BA39: Indvendig overgangsisolans | BD39: =BD6 -> 0.13 | BH39: Væg-isolering | BI39: 0.1 | BJ39: 0.018 | BK39: 0.007 | BL39: 0.002 | BM39: 0 | BO39: Væg-isolering | BP39: 0.1 | BQ39: 0.018 | BR39: 0.007 | BS39: 0.002 | BT39: 0 | CO39: Tillæg til dør1 | CP39: =CP38+K20 -> 8 | CQ39: =CQ38 -> 3 | DN39: =Materialer!$H34 -> 0 | DP39: =Materialer!$I34 -> 0 | DR39: =Materialer!$E34 -> 0 | DT39: =Materialer!$F34 -> 0 | DV39: =Materialer!$E34 -> 0 | DX39: =Materialer!$F34 -> 0 | DZ39: =Materialer!$E34 -> 0 | EB39: =Materialer!$F34 -> 0 | ED39: =Materialer!$B34 -> 0 | EF39: =Materialer!$C34 -> 0 | EI39: =Materialer!$B34 -> 0 | EJ39: =Materialer!$C34 -> 0 | EK39: =Materialer!$E34 -> 0 | EL39: =Materialer!$F34 -> 0 | EM39: =Materialer!$H34 -> 0 | EN39: =Materialer!$I34 -> 0 | ET39: 1.8 | EU39: 0.2 | EY39: 3.1 | EZ39: 0 | FD39: 7 | FE39: 0.5 | FM39: Bagstøbning | FO39: Bundribbe | FQ39: Ribbe over øverste vindue | FS39: Ribbe over dør | FU39: Dørhul | FW39: Øverste forstærkning
F40: =BE55 -> 0.1299199726 | G40: =BF55 -> W/m²K | BA40: =B36 -> Forstøbning | BB40: =F38 -> 0.15 | BC40: =G36 -> 2,54 | BD40: =IF(BB40=0, 0, IF(BC40=0, 0, BB40/BC40)) -> 0.05905511811 | BI40: 0.15 | BJ40: 0.024 | BK40: 0.013 | BL40: 0.007 | BM40: 0.003 | BP40: 0.15 | BQ40: 0.024 | BR40: 0.013 | BS40: 0.007 | BT40: 0.003 | CG40: Bund Ribbe4 | CH40: =IF(J14="",0,IF(J15="",0,IF(J16="",0,M16+K16))) -> 4.1 | CI40: 0 | CP40: =CP39 -> 8 | CQ40: =CQ37 -> 2 | DN40: =Materialer!$H35 -> 0 | DP40: =Materialer!$I35 -> 0 | DR40: =Materialer!$E35 -> 0 | DT40: =Materialer!$F35 -> 0 | DV40: =Materialer!$E35 -> 0 | DX40: =Materialer!$F35 -> 0 | DZ40: =Materialer!$E35 -> 0 | EB40: =Materialer!$F35 -> 0 | ED40: =Materialer!$B35 -> 0 | EF40: =Materialer!$C35 -> 0 | EI40: =Materialer!$B35 -> 0 | EJ40: =Materialer!$C35 -> 0 | EK40: =Materialer!$E35 -> 0 | EL40: =Materialer!$F35 -> 0 | EM40: =Materialer!$H35 -> 0 | EN40: =Materialer!$I35 -> 0 | ET40: 1.8 | EU40: 0 | FM40: X | FN40: Y | FO40: X | FP40: Y | FQ40: X | FR40: Y | FS40: X | FT40: Y | FU40: X | FV40: Y | FW40: X | FX40: Y
BA41: =B37 -> Isolering | BB41: 0.25 | BC41: 0.037 | BD41: =IF(BB41=0, 0, IF(BC41=0, 0, BB41/BC41)) -> 6.756756757 | BI41: 0.2 | BJ41: 0.027 | BK41: 0.017 | BL41: 0.012 | BM41: 0.008 | BP41: 0.2 | BQ41: 0.027 | BR41: 0.017 | BS41: 0.012 | BT41: 0.008 | CB41: Korrektion for Ophængbøjler (ds418:2011 side 31) | CH41: =CH40 -> 4.1 | CI41: =IF(J14="",0,IF(J15="",0,IF(J16="",0,G11))) -> 0.2 | CP41: =CP37 -> 7 | CQ41: =CQ37 -> 2 | ET41: 1.5 | EU41: 0 | EX41: Rib om dør3 | EY41: =CL32 -> 3 | EZ41: 0.2 | FA41: =IF(MAX(EY41:EY45)>=$V$6,1,0)*IF(MIN(EY41:EY45)<=$V$6,1,0) -> 0 | FC41: Rib om vindue3 | FD41: =CP32 -> 6.9 | FE41: =CQ32 -> 0.4 | FF41: =IF(MAX(FD41:FD45)>=$V$6,1,0)*IF(MIN(FD41:FD45)<=$V$6,1,0) -> 0 | FG41: =IF($FF$41>0,FE41,"") ->  | FM41: =FQ37-FQ34 -> 0.4 | FN41: 0 | FO41: =FQ37-FQ13 ->  | FP41: =FP13 ->  | FQ41: =FQ37-FQ22 ->  | FR41: =FP24 ->  | FS41: =FQ37-FQ19 -> 0.35 | FT41: =FP20 -> 2 | FU41: 0 | FV41: 0 | FW41: =$FQ$37-$FQ$30 ->  | FX41: =MAX($FP$33,$FP$31) -> 0
BA42: =B38 -> Bagstøbning | BB42: =F36 -> 0.1 | BC42: 2.44 | BD42: =IF(BB42=0, 0, IF(BC42=0, 0, BB42/BC42)) -> 0.04098360656 | BI42: 0.25 | BJ42: 0.028 | BK42: 0.019 | BL42: 0.015 | BM42: 0.011 | BP42: 0.25 | BQ42: 0.028 | BR42: 0.019 | BS42: 0.015 | BT42: 0.011 | CH42: =IF(J14="",0,IF(J15="",0,IF(J16="",0,D8-G9))) -> 9.6 | CI42: =CI41 -> 0.2 | EY42: 3 | EZ42: 2.1 | FD42: 6.9 | FE42: 1.6 | FG42: =IF($FF$41>0,FE42,"") ->  | FM42: =FM41 -> 0.4 | FN42: =D9 -> 4 | FO42: =FQ37-FQ34 -> 0.4 | FP42: =FP41 ->  | FQ42: =FQ37-FQ34 -> 0.4 | FR42: =FR41 ->  | FS42: =FQ37-(FQ34) -> 0.4 | FT42: =FT41 -> 2 | FU42: 0 | FV42: =FP20 -> 2 | FW42: =$FQ$37-$FQ$34 -> 0.4 | FX42: =FX41 -> 0
BA43: Udvendig overgangsisolans | BD43: =BD12 -> 0.04 | BV43: Areal | CB43: =IF(M11="Stål",(M9*(170*(PI()*((M10/1000)/2)^2))),IF(M11="Rustfast stål",(M9*(60*(PI()*((M10/1000)/2)^2))),"")) -> 0.01178097245 | CC43: W/m²K | CH43: =CH42 -> 9.6 | CI43: =CI40 -> 0 | CO43: Rib om vindue4 | CP43: =CP37-L20 -> 6.9 | CQ43: =CQ37-L20 -> 1.9 | ES43: Bund Ribbe3 | ET43: =CH34 -> 2.8 | EU43: 0 | EV43: =IF(MAX(ET43:ET47)>=$V$6,1,0)*IF(MIN(ET43:ET47)<=$V$6,1,0) -> 0 | EY43: 4.2 | EZ43: 2.1 | FD43: 8.1 | FE43: 1.6 | FM43: =FQ37 -> 0.5 | FN43: =FN42 -> 4 | FO43: =FO42 -> 0.4 | FP43: =FP14 ->  | FQ43: =FQ42 -> 0.4 | FR43: =FP25 ->  | FS43: =FS42 -> 0.4 | FT43: =IF(FP21>0,FP21,"") -> 2.1 | FU43: =FQ37 -> 0.5 | FV43: =FV42 -> 2 | FW43: =FW42 -> 0.4 | FX43: =MAX($FP$30,$FP$32) -> 0
BC44: ƩR | BD44: =SUM(BD39:BD43) -> 7.026795481 | BE44: =BW51 -> 0.75 | BF44: =1/BD44 -> 0.1423123816 | BH44: Øvre værdier | BL44: Udtræk fra tabel | BO44: Øvre værdier | BS44: Udtræk fra tabel | BV44: Areal af væg | BW44: =((D8-G8-G9)*(D9-G10-G11))-(((J14+L14)*(K14+L14+L14))+((J15+L15)*(K15+L15+L15))+((J16+L16)*(K16+L16+L16)))-(((J17+L17+L17)*(K17+L17+L17))+((J18+L18+L18)*(K18+L18+L18))+((J19+L19+L19)*(K19+L19+L19))+((J20+L20+L20)*(K20+L20+L20))+((J21+L21+L21)*(K21+L21+L21)))-((J22*K22)+(J23*K23)+(J24*K24)) -> 18.33 | BX44: m² | CH44: =CH40 -> 4.1 | CI44: =CI40 -> 0 | CP44: =CP43 -> 6.9 | CQ44: =CQ43+L20+L20+J20 -> 3.1 | ET44: 2.8 | EU44: 0.2 | EY44: 4.2 | EZ44: 0.2 | FD44: 8.1 | FE44: 0.4 | FM44: =FM43 -> 0.5 | FN44: =FN41 -> 0 | FO44: =FO41 ->  | FP44: =FP43 ->  | FQ44: =FQ41 ->  | FR44: =FR43 ->  | FS44: =FS41 -> 0.35 | FT44: =FT43 -> 2.1 | FU44: =FU43 -> 0.5 | FV44: 0 | FW44: =FW41 ->  | FX44: =FX43 -> 0
BA45: Materiale | BB45: l | BC45: Ψ | BD45: L | BF45: U | BH45: Isolering i væg | BI45: =IF(BW$64<BI39,BI39,IF(BW$64<BI40,BI40,IF(BW$64<BI41,BI41,IF(BW$64>=BI41,BI42,"FEJL")))) -> 0.25 | BL45: Min | BM45: Maks | BO45: Isolering i væg | BP45: =IF(BW$64<BP39,BP39,IF(BW$64<BP40,BP40,IF(BW$64<BP41,BP41,IF(BW$64>=BP41,BP42,"FEJL")))) -> 0.25 | BS45: Min | BT45: Maks | BV45: Areal af venstre ribbe | BW45: =D9*G8 -> 0.8 | BX45: m² | CB45: Stål | CP45: =CP44+L20+L20+K20 -> 8.1 | CQ45: =CQ44 -> 3.1 | ET45: 3.1 | EU45: 0.2 | FD45: 6.9 | FE45: 0.4 | FM45: =FM41 -> 0.4 | FN45: =FN44 -> 0 | FO45: =FO41 ->  | FS45: 0.35 | FT45: 2 | FU45: 0 | FV45: 0 | FW45: =FW41 ->  | FX45: =FX41 -> 0
BB46: m | BC46: W/mK | BD46: W/K | BF46: W/m²K | BH46: Ribbeisolering | BI46: =IF(F$32<BJ38,BJ38,IF(F$32<BK38,BK38,IF(F$32<BL38,BL38,IF(F$32>=BL38,BM38,"FEJL")))) -> 0.1 | BL46: =IF($BI$53<BK$38,BJ39,IF(AND($BI$53>=BK$38,$BI$53<BL$38),BK39,IF(AND($BI$53>=BL$38,$BI$53<BM$38),BL39,IF($BI$53>=BM$38,BM39,"FEJL")))) -> 0 | BM46: =IF($BI$46<BK$38,BJ39,IF(AND($BI$46>=BK$38,$BI$46<BL$38),BK39,IF(AND($BI$46>=BL$38,$BI$46<BM$38),BL39,IF($BI$46>=BM$38,BM39,"FEJL")))) -> 0 | BO46: Ribbeisolering | BP46: =IF(F$37<BQ38,BQ38,IF(F$37<BR38,BR38,IF(F$37<BS38,BS38,IF(F$37>=BS38,BT38,"FEJL")))) -> 0.1 | BS46: =IF($BP$53<BR$38,BQ39,IF(AND($BP$53>=BR$38,$BP$53<BS$38),BR39,IF(AND($BP$53>=BS$38,$BP$53<BT$38),BS39,IF($BP$53>=BT$38,BT39,"FEJL")))) -> 0 | BT46: =IF($BP$46<BR$38,BQ39,IF(AND($BP$46>=BR$38,$BP$46<BS$38),BR39,IF(AND($BP$46>=BS$38,$BP$46<BT$38),BS39,IF($BP$46>=BT$38,BT39,"FEJL")))) -> 0 | BV46: Areal af højre ribbe | BW46: =D9*G9 -> 0.8 | BX46: m² | CB46: Rustfast stål | CG46: Ramme | CH46: 0 | CI46: 0 | CP46: =CP45 -> 8.1 | CQ46: =CQ43 -> 1.9 | ET46: 3.1 | EU46: 0 | FC46: Vindue4 | FD46: 7 | FE46: 2 | FF46: =IF(MAX(FD46:FD50)>$V$6,1,0)*IF(MIN(FD46:FD50)<$V$6,1,0) -> 0 | FG46: =IF($FF$46>0,FE46,"") ->  | FM46: Forstøbning | FO46: Topribbe | FQ46: Ribbe under øverste vindue | FU46: Øverste vindueshul | FW46: Nedereste forstærkning
BA47: Linjetabet | BH47: Y-aksen 1 | BI47: =IF(BI45<BI40,BL46,IF(AND(BI45>=BI40,BI45<BI41),BL47,IF(AND(BI45>=BI41,BI45<BI42),BL48,IF(BI45>=BI42,BL49,"FEJL")))) -> 0.011 | BL47: =IF($BI$53<BK$38,BJ40,IF(AND($BI$53>=BK$38,$BI$53<BL$38),BK40,IF(AND($BI$53>=BL$38,$BI$53<BM$38),BL40,IF($BI$53>=BM$38,BM40,"FEJL")))) -> 0.003 | BM47: =IF($BI$46<BK$38,BJ40,IF(AND($BI$46>=BK$38,$BI$46<BL$38),BK40,IF(AND($BI$46>=BL$38,$BI$46<BM$38),BL40,IF($BI$46>=BM$38,BM40,"FEJL")))) -> 0.003 | BO47: Y-aksen 1 | BP47: =IF(BP45<BP40,BS46,IF(AND(BP45>=BP40,BP45<BP41),BS47,IF(AND(BP45>=BP41,BP45<BP42),BS48,IF(BP45>=BP42,BS49,"FEJL")))) -> 0.011 | BS47: =IF($BP$53<BR$38,BQ40,IF(AND($BP$53>=BR$38,$BP$53<BS$38),BR40,IF(AND($BP$53>=BS$38,$BP$53<BT$38),BS40,IF($BP$53>=BT$38,BT40,"FEJL")))) -> 0.003 | BT47: =IF($BP$46<BR$38,BQ40,IF(AND($BP$46>=BR$38,$BP$46<BS$38),BR40,IF(AND($BP$46>=BS$38,$BP$46<BT$38),BS40,IF($BP$46>=BT$38,BT40,"FEJL")))) -> 0.003 | BV47: Areal af top ribbe | BW47: =(D8-G8-G9)*G10 -> 1.88 | BX47: m² | CH47: =CH46 -> 0 | CI47: =D9 -> 4 | CP47: =CP43 -> 6.9 | CQ47: =CQ43 -> 1.9 | ET47: 2.8 | EU47: 0 | EZ47: Døre i snit | FA47: =FA13+FA24+FA35 -> 1 | FD47: 7 | FE47: 3 | FG47: =IF($FF$46>0,FE47,"") ->  | FM47: X | FN47: Y | FO47: X | FP47: Y | FQ47: X | FR47: Y | FU47: X | FV47: Y | FW47: X | FX47: Y
BA48: Linjetab for element | BB48: =BW53+BW54+BW55+BW56 -> 26 | BC48: =BI32 -> 0 | BD48: =BB48*BC48 -> 0 | BF48: =BD48/(BE$16+BE$23+BE$30+BE$37+BE$44) -> 0 | BH48: Y-aksen 2 | BI48: =IF(BI45<BI40,BM46,IF(AND(BI45>=BI40,BI45<BI41),BM47,IF(AND(BI45>=BI41,BI45<BI42),BM48,IF(BI45>=BI42,BM49,"FEJL")))) -> 0.011 | BL48: 0.008 | BM48: 0.008 | BO48: Y-aksen 2 | BP48: =IF(BP45<BP40,BT46,IF(AND(BP45>=BP40,BP45<BP41),BT47,IF(AND(BP45>=BP41,BP45<BP42),BT48,IF(BP45>=BP42,BT49,"FEJL")))) -> 0.011 | BS48: 0.008 | BT48: 0.008 | BV48: Areal af bund ribbe | BW48: =(D8-G8-G9)*G11 -> 1.88 | BX48: m² | CH48: =D8 -> 9.8 | CI48: =CI47 -> 4 | CO48: Vindue5 | CP48: =M21 -> 8.3 | CQ48: =N21+CO51 -> 0.5 | FD48: 8 | FE48: 3 | FM48: =FS37-FS34 -> 0 | FN48: 0 | FO48: =FQ37-FQ15 -> 0.35 | FP48: =FP15 -> 3.8 | FQ48: =FQ41 ->  | FR48: =FP22 ->  | FU48: 0 | FV48: =MAX(FP27,FP23) -> 0 | FW48: =$FQ$37-$FQ$30 ->  | FX48: =MIN($FP$33,$FP$31) -> 0
BA49: Linjetab for dør | BB49: =BW58 -> 16.2 | BC49: =BP32 -> 0 | BD49: =BB49*BC49 -> 0 | BF49: =BD49/(BE$16+BE$23+BE$30+BE$37+BE$44) -> 0 | BH49: Y12 | BI49: =IF(BI47=BI48,BI47,BI47+((BI48-BI47)*((F32-BI$58)/(BI$59-BI$58)))) -> 0.011 | BL49: 0.011 | BM49: 0.011 | BO49: Y12 | BP49: =IF(BP47=BP48,BP47,BP47+((BP48-BP47)*((F37-BP$58)/(BP$59-BP$58)))) -> 0.011 | BS49: 0.011 | BT49: 0.011 | BV49: Areal af ribbe om vinduer | BW49: =(2*(((K17+L17)*L17)+((J17+L17)*L17)))+(2*(((K18+L18)*L18)+((J18+L18)*L18)))+(2*(((K19+L19)*L19)+((J19+L19)*L19)))+(2*(((K20+L20)*L20)+((J20+L20)*L20)))+(2*(((K21+L21)*L21)+((J21+L21)*L21))) -> 2.2 | BX49: m² | BZ49: Lag i konstruktionen | CH49: =CH48 -> 9.8 | CI49: =CI46 -> 0 | CP49: =CP48 -> 8.3 | CQ49: =CQ48+J21 -> 1.5 | ES49: Bund Ribbe4 | ET49: =CH40 -> 4.1 | EU49: 0 | EV49: =IF(MAX(ET49:ET53)>=$V$6,1,0)*IF(MIN(ET49:ET53)<=$V$6,1,0) -> 0 | FD49: 8 | FE49: 2 | FM49: =FM48 -> 0 | FN49: =FN42 -> 4 | FO49: =FQ37-FQ34 -> 0.4 | FP49: =FP48 -> 3.8 | FQ49: =FQ42 -> 0.4 | FR49: =FR48 ->  | FU49: =FQ37 -> 0.5 | FV49: =FV48 -> 0 | FW49: =$FQ$37-$FQ$34 -> 0.4 | FX49: =FX48 -> 0
BA50: Linjetab for vindue | BB50: =BW59 -> 24 | BC50: =BI64 -> 0 | BD50: =BB50*BC50 -> 0 | BF50: 0 | BV50: Areal af ribbe om døre | BW50: =((2*((J14+L14)*L14))+(K14*L14))+((2*((J15+L15)*L15))+(K15*L15))+((2*((J16+L16)*L16))+(K16*L16)) -> 1.56 | BX50: m² | CH50: =CH46 -> 0 | CI50: =CI46 -> 0 | CO50: Tillæg til dør1 | CP50: =CP49+K21 -> 9.3 | CQ50: =CQ49 -> 1.5 | ET50: 4.1 | EU50: 0.2 | FD50: 7 | FE50: 2 | FM50: =FQ36 -> 0.1 | FN50: =FN49 -> 4 | FO50: =FO49 -> 0.4 | FP50: =FP16 -> 4 | FQ50: =FQ49 -> 0.4 | FR50: =FP23 ->  | FU50: =FU49 -> 0.5 | FV50: =MAX(FP24,FP28) -> 0 | FW50: =FW49 -> 0.4 | FX50: =MIN($FP$30,$FP$32) -> 0
BA51: Linjetab for Forstærkninger | BB51: =BW60 -> 6 | BC51: =BP64 -> 0 | BD51: =BB51*BC51 -> 0 | BF51: 0 | BH51: Nedre værdier | BO51: Nedre værdier | BV51: Areal af Forstrækning | BW51: =(J22*K22)+(J23*K23)+(J24*K24) -> 0.75 | BX51: m² | CD51: 0.1 | CE51: =$DQ$10&$DQ$11&$DQ$12&$DQ$13&$DQ$14&$DQ$15&$DQ$16&$DQ$17&$DQ$18&$DQ$19&$DQ$20&$DQ$21&$DQ$22&$DQ$23&$DQ$24&$DQ$25&$DQ$26&$DQ$27&$DQ$28&$DQ$29&$DQ$30&$DQ$31&$DQ$32&$DQ$33&$DQ$34&$DQ$35&$DQ$36&$DQ$37&$DQ$38&$DQ$39&$DQ$40 -> 2,54 | CP51: =CP50 -> 9.3 | CQ51: =CQ48 -> 0.5 | ET51: 9.6 | EU51: 0.2 | FM51: =FM50 -> 0.1 | FN51: =FN48 -> 0 | FO51: =FO48 -> 0.35 | FP51: =FP50 -> 4 | FQ51: =FQ48 ->  | FR51: =FR50 ->  | FU51: 0 | FV51: =FV50 -> 0 | FW51: =FW48 ->  | FX51: =FX50 -> 0
BF52: =SUM(BF48:BF51) -> 0 | BH52: Isolering i væg | BI52: =IF(BW$64<BI40,BI39,IF(BW$64<BI41,BI40,IF(BW$64<BI42,BI41,IF(BW$64>=BI42,BI42,"FEJL")))) -> 0.25 | BO52: Isolering i væg | BP52: =IF(BW$64<BP40,BP39,IF(BW$64<BP41,BP40,IF(BW$64<BP42,BP41,IF(BW$64>=BP42,BP42,"FEJL")))) -> 0.25 | BV52: Længder | CD52: 0.1 | CE52: =$DU$10&$DU$11&$DU$12&$DU$13&$DU$14&$DU$15&$DU$16&$DU$17&$DU$18&$DU$19&$DU$20&$DU$21&$DU$22&$DU$23&$DU$24&$DU$25&$DU$26&$DU$27&$DU$28&$DU$29&$DU$30&$DU$31&$DU$32&$DU$33&$DU$34&$DU$35&$DU$36&$DU$37&$DU$38&$DU$39&$DU$40 -> 0,035 | CG52: Snit | CH52: =V6 -> 1 | CI52: 0 | CP52: =CP48 -> 8.3 | CQ52: =CQ48 -> 0.5 | ET52: 9.6 | EU52: 0 | FC52: Rib om vindue4 | FD52: =CP43 -> 6.9 | FE52: =CQ43 -> 1.9 | FF52: =IF(MAX(FD52:FD56)>=$V$6,1,0)*IF(MIN(FD52:FD56)<=$V$6,1,0) -> 0 | FG52: =IF($FF$52>0,FE52,"") ->  | FM52: =FM48 -> 0 | FN52: =FN51 -> 0 | FO52: =FO48 -> 0.35 | FP52: =FP48 -> 3.8 | FQ52: =FQ48 ->  | FR52: =FR48 ->  | FU52: =FU48 -> 0 | FV52: =FV48 -> 0 | FW52: =FW48 ->  | FX52: =FX48 -> 0
BA53: Punkttab | BH53: Ribbeisolering | BI53: =IF(F$32<BK$6,BJ38,IF(F$32<BL$6,BK38,IF(F$32<BM$6,BL38,IF(F$32>=BL38,BM38,"FEJL")))) -> 0.1 | BO53: Ribbeisolering | BP53: =IF(F$37<BR$6,BQ38,IF(F$37<BS$6,BR38,IF(F$37<BT$6,BS38,IF(F$37>=BS38,BT38,"FEJL")))) -> 0.1 | BV53: Venstre ribbe | BW53: =D9-G10-G11 -> 3.6 | BX53: m | CD53: 0.1 | CE53: =$DY$10&$DY$11&$DY$12&$DY$13&$DY$14&$DY$15&$DY$16&$DY$17&$DY$18&$DY$19&$DY$20&$DY$21&$DY$22&$DY$23&$DY$24&$DY$25&$DY$26&$DY$27&$DY$28&$DY$29&$DY$30&$DY$31&$DY$32&$DY$33&$DY$34&$DY$35&$DY$36&$DY$37&$DY$38&$DY$39&$DY$40 -> 0,035 | CH53: =CH52 -> 1 | CI53: =D9+0.5 -> 4.5 | ET53: 4.1 | EU53: 0 | FD53: 6.9 | FE53: 3.1 | FG53: =IF($FF$52>0,FE53,"") ->  | FO53: Sideribbe | FQ53: Ribbe over nederste vindue | FU53: Nederste vindueshul
BA54: Ophængsbøjler | BF54: =CB43/(BE44+BE37+BE30+BE23+BE16) -> 0.0004177649805 | BH54: Y-aksen 1 | BI54: =IF(BI52<BI40,BL46,IF(AND(BI52>=BI40,BI52<BI41),BL47,IF(AND(BI52>=BI41,BI52<BI42),BL48,IF(BI52>=BI42,BL49,"FEJL")))) -> 0.011 | BO54: Y-aksen 1 | BP54: =IF(BP52<BP40,BS46,IF(AND(BP52>=BP40,BP52<BP41),BS47,IF(AND(BP52>=BP41,BP52<BP42),BS48,IF(BP52>=BP42,BS49,"FEJL")))) -> 0.011 | BV54: Højre ribbe | BW54: =D9-G10-G11 -> 3.6 | BX54: m | CD54: 0.1 | CE54: =$EC$10&$EC$11&$EC$12&$EC$13&$EC$14&$EC$15&$EC$16&$EC$17&$EC$18&$EC$19&$EC$20&$EC$21&$EC$22&$EC$23&$EC$24&$EC$25&$EC$26&$EC$27&$EC$28&$EC$29&$EC$30&$EC$31&$EC$32&$EC$33&$EC$34&$EC$35&$EC$36&$EC$37&$EC$38&$EC$39&$EC$40 -> 0,035 | CO54: Rib om vindue5 | CP54: =CP48-L21 -> 8.2 | CQ54: =CQ48-L21 -> 0.4 | FD54: 8.1 | FE54: 3.1 | FO54: X | FP54: Y | FQ54: X | FR54: Y | FU54: X | FV54: Y
BA55: U-værdi | BE55: =(((BF16*BE16)+(BF23*BE23)+(BF30*BE30)+(BF37*BE37)+(BF44*BE44))/(BE16+BE23+BE30+BE37+BE44))+BF52+BF54 -> 0.1299199726 | BF55: W/m²K | BH55: Y-aksen 2 | BI55: =IF(BI52<BI40,BM46,IF(AND(BI52>=BI40,BI52<BI41),BM47,IF(AND(BI52>=BI41,BI52<BI42),BM48,IF(BI52>=BI42,BM49,"FEJL")))) -> 0.011 | BO55: Y-aksen 2 | BP55: =IF(BP52<BP40,BT46,IF(AND(BP52>=BP40,BP52<BP41),BT47,IF(AND(BP52>=BP41,BP52<BP42),BT48,IF(BP52>=BP42,BT49,"FEJL")))) -> 0.011 | BV55: Top ribbe | BW55: =D8-G8-G9 -> 9.4 | BX55: m | CD55: 0.1 | CE55: =$EG$10&$EG$11&$EG$12&$EG$13&$EG$14&$EG$15&$EG$16&$EG$17&$EG$18&$EG$19&$EG$20&$EG$21&$EG$22&$EG$23&$EG$24&$EG$25&$EG$26&$EG$27&$EG$28&$EG$29&$EG$30&$EG$31&$EG$32&$EG$33&$EG$34&$EG$35&$EG$36&$EG$37&$EG$38&$EG$39&$EG$40 -> 2,44 | CP55: =CP54 -> 8.2 | CQ55: =CQ54+L21+L21+J21 -> 1.6 | ES55: Ramme | ET55: =CH46 -> 0 | EU55: 0 | FD55: 8.1 | FE55: 1.9 | FP55: =FP22 ->  | FQ55: =FQ41 ->  | FR55: =FP28 ->  | FU55: 0 | FV55: =MIN(FP23,FP27) -> 0
BH56: Y12 | BI56: =IF(BI54=BI55,BI54,BI54+((BI55-BI54)*((F32-BI$58)/(BI$59-BI$58)))) -> 0.011 | BO56: Y12 | BP56: =IF(BP54=BP55,BP54,BP54+((BP55-BP54)*((F37-BP$58)/(BP$59-BP$58)))) -> 0.011 | BV56: Bund ribbe | BW56: =D8-G8-G9 -> 9.4 | BX56: m | CP56: =CP55+L21+L21+K21 -> 9.4 | CQ56: =CQ55 -> 1.6 | ET56: 0 | EU56: 4 | FD56: 6.9 | FE56: 1.9 | FP56: =FP55 ->  | FQ56: =FQ42 -> 0.4 | FR56: =FR55 ->  | FU56: =FQ37 -> 0.5 | FV56: =FV55 -> 0
CP57: =CP56 -> 9.4 | CQ57: =CQ54 -> 0.4 | ET57: 9.8 | EU57: 4 | FC57: Vindue5 | FD57: 8.3 | FE57: 0.5 | FF57: =IF(MAX(FD57:FD61)>$V$6,1,0)*IF(MIN(FD57:FD61)<$V$6,1,0) -> 0 | FG57: =IF($FF$57>0,FE57,"") ->  | FP57: =FP23 ->  | FQ57: =FQ43 -> 0.4 | FR57: =FP29 ->  | FU57: =FU56 -> 0.5 | FV57: =MIN(FP24,FP28) -> 0
BH58: X-aksen 1 | BI58: =BI53 -> 0.1 | BO58: X-aksen 1 | BP58: =BP53 -> 0.1 | BV58: Døre | BW58: =BU78 -> 16.2 | BX58: m | CP58: =CP54 -> 8.2 | CQ58: =CQ54 -> 0.4 | ET58: 9.8 | EU58: 0 | FD58: 8.3 | FE58: 1.5 | FG58: =IF($FF$57>0,FE58,"") ->  | FP58: =FP57 ->  | FQ58: =FQ44 ->  | FR58: =FR57 ->  | FU58: 0 | FV58: =FV57 -> 0
BH59: X-aksen 2 | BI59: =BI46 -> 0.1 | BO59: X-aksen 2 | BP59: =BP46 -> 0.1 | BV59: Vinduer | BW59: =BU88 -> 24 | BX59: m | CE59: 3 | ET59: 0 | EU59: 0 | FD59: 9.3 | FE59: 1.5 | FP59: =FP55 ->  | FQ59: =FQ45 ->  | FR59: =FR55 ->  | FU59: =FU55 -> 0 | FV59: =FV55 -> 0
BV60: Forstærkning | BW60: =(2*(J24+K24))+(2*(J22+K22))+(2*(J23+K23)) -> 6 | BX60: m | CE60: 4 | FD60: 9.3 | FE60: 0.5 | FQ60: Ribbe under nederste vindue
CE61: 5 | FD61: 8.3 | FE61: 0.5 | FQ61: X | FR61: Y
FQ62: =FQ55 ->  | FR62: =FP26 -> 
EV63: =sum ->  | FC63: Rib om vindue5 | FD63: =CP54 -> 8.2 | FE63: 0.4 | FF63: =IF(MAX(FD63:FD67)>=$V$6,1,0)*IF(MIN(FD63:FD67)<=$V$6,1,0) -> 0 | FG63: =IF($FF$63>0,FE63,"") ->  | FQ63: =FQ56 -> 0.4 | FR63: =FR62 -> 
BH64: Ψ | BI64: =IF(F32>0.1,0,IF(BI45=BI52,BI49,(BI56*(BI45-BW$64)+BI49*(BW$64-BI52))/(BI45-BI52))) -> 0 | BO64: Ψ | BP64: =IF(F37>0.1,0,IF(BP45=BP52,BP49,(BP56*(BP45-BW$64)+BP49*(BW$64-BP52))/(BP45-BP52))) -> 0 | BV64: Isoleringstykkelse | BW64: =SUM(IF(DL22="Isolering",F14,0),IF(DL23="Isolering",F15,0),IF(DL24="Isolering",F16,0),IF(DL25="Isolering",F17,0),IF(DL26="Isolering",F18,0)) -> 0.3 | BX64: m | FD64: 8.2 | FE64: 1.6 | FG64: =IF($FF$63>0,FE64,"") ->  | FQ64: =FQ57 -> 0.4 | FR64: =FP27 -> 
FD65: 9.4 | FE65: 1.6 | FQ65: =FQ58 ->  | FR65: =FR64 -> 
BV66: Bagstøbningstykkelse | BW66: =SUM(IF(DL22="Bagstøbning",F14,0),IF(DL23="Bagstøbning",F15,0),IF(DL24="Bagstøbning",F16,0),IF(DL25="Bagstøbning",F17,0),IF(DL26="Bagstøbning",F18,0)) -> 0.1 | BX66: m | FD66: 9.4 | FE66: 0.4 | FQ66: =FQ59 ->  | FR66: =FR62 -> 
BV67: Forstøbningstykkelse | BW67: =SUM(IF(DL22="Forstøbning",F14,0),IF(DL23="Forstøbning",F15,0),IF(DL24="Forstøbning",F16,0),IF(DL25="Forstøbning",F17,0),IF(DL26="Forstøbning",F18,0)) -> 0.1 | BX67: m | FD67: 8.2 | FE67: 0.4
BH69: Energitab fordelt på områder | BV69: Forstøbning λ | BW69: =IF(DL11=3,SUM(DY10:DY40),IF(DL11=4,SUM(EC10:EC40),IF(DL11=5,SUM(EG10:EG40),0))) -> 2.44 | FD69: Vinduer i snit | FF69: =FF13+FF24+FF35+FF46+FF57 -> 0 | FM69: x
BL70: A | BM70: U | BN70: Vægt | BO70: Andel af energi | BP70: Pr. areal | FM70: 1 | FN70: 3 | FO70: 1 | FP70: 4 | FQ70: 5 | FR70: 2 | FS70: 6 | FT70: 8
BA71: Fejltabel | BL71: [m²] | BM71: [W/m²K] | BN71: [W/m²K] | BO71: [%] | BP71: [%/m²] | FM71: 2 | FN71: 5 | FO71: 2 | FP71: 5 | FQ71: 3 | FR71: 6 | FS71: 4 | FT71: 6
BA72: Bredden af element må ikke være større end 10 m. | BB72: =IF(BC72=1,BA72&" ! ","") ->  | BC72: =IF(D8>10,1,0) -> 0 | BS72: Rippe længder | FM72: 3 | FN72: 3 | FO72: 1 | FP72: 4 | FQ72: 2 | FR72: 6 | FS72: 3 | FT72: 6
BA73: Højden af elementet må ikke være større end 5 m. | BB73: =IF(BC73=1,BA73&" ! ","") ->  | BC73: =IF(D9>5,1,0) -> 0 | BH73: Hovedelement | BL73: =BE16 -> 18.33 | BM73: =BF13 -> 0.113355779 | BN73: =(BL73*BM73)/$BL$79 -> 0.07368125636 | BO73: =BN73/$BN$89*100 -> 56.71280167 | BP73: =BO73/BL73 -> 3.093988089 | BS73: Dør | FM73: 4 | FN73: 1
BS74: længde | BT74: Kontrol | BU74: Endelig
BH75: Ribbe omkring element | BL75: =BE23 -> 5.36 | BM75: =BF23 -> 0.1423123816 | BN75: =(BL75*BM75)/$BL$79 -> 0.02704944558 | BO75: =BN75/$BN$89*100 -> 20.82008259 | BP75: =BO75/BL75 -> 3.884343766 | BS75: =(2*(J14+L14)+(K14+2*L14)) -> 5.4 | BT75: =IF(L14=0,0,1) -> 1 | BU75: =BS75*BT75 -> 5.4
BH76: Ribbe omkring dør | BL76: =BE30 -> 1.56 | BM76: =BF30 -> 0.1423123816 | BN76: 0.007872599833 | BO76: =BN76/$BN$89*100 -> 6.059576275 | BP76: =BO76/BL76 -> 3.884343766 | BS76: =+(2*(J15+L15)+(K15+2*L15)) -> 5.4 | BT76: =IF(L15=0,0,1) -> 1 | BU76: =BS76*BT76 -> 5.4 | BY76: Bindere
BH77: Ribbe omkring vindue | BL77: =BE37 -> 2.2 | BM77: =BF37 -> 0.1423123816 | BN77: 0.01110238438 | BO77: =BN77/$BN$89*100 -> 8.545556285 | BP77: =BO77/BL77 -> 3.884343766 | BS77: =+(2*(J16+L16)+(K16+2*L16)) -> 5.4 | BT77: =IF(L16=0,0,1) -> 1 | BU77: 5.4 | EK77: =IF(EK41=0,"",EK41) -> 
BB78: =IF(BC78=1,BA78&" ! ","") ->  | BH78: Forstærkning | BL78: =BE44 -> 0.75 | BM78: =BF44 -> 0.1423123816 | BN78: 0.003784903766 | BO78: =BN78/$BN$89*100 -> 2.913257824 | BP78: =BO78/BL78 -> 3.884343766 | BT78: SUM | BU78: =SUM(BU75:BU77) -> 16.2 | BZ78: Endelig tillægsværdi | EK78: =IF(EK42=0,"",EK42) -> 
BB79: =IF(BC79=1,BA79&" ! ","") ->  | BK79: ƩA | BL79: =SUM(BL73:BL78) -> 28.2 | BZ79: =BZ81*((BZ82*BZ83*BZ84*(BZ86/BZ87)^2)/BZ85) -> 0.009248642546 | CA79: ΔUf | CC79: λf
BB80: =IF(BC80=1,BA80&" ! ","") ->  | CC80: Plast | CD80: 0
BA81: Der må ikke være negative værdier i arket! | BB81: =IF(BC81=1,BA81&" ! ","") ->  | BC81: =IF(MIN(D8:D9,G8:G11,J9:K11,M9:M10,F14:G18,F21:G23,F26:G28,F31:G33,F36:G38,J14:N24)<0,1,0) -> 0 | BH81: Linjetab element | BM81: =BF48 -> 0 | BN81: =BM81 -> 0 | BO81: =BN81/$BN$89*100 -> 0 | BS81: Vindue | BZ81: 0.8 | CA81: α | CC81: Rustfast stål | CD81: 17
BB82: =IF(BC82=1,BA82&" ! ","") ->  | BH82: Linjetab dør | BM82: =BF49 -> 0 | BN82: =BM82 -> 0 | BO82: =BN82/$BN$89*100 -> 0 | BS82: længde | BT82: Kontrol | BU82: Endelig | BZ82: =IF(J10=CC80,CD80,IF(J10=CC81,CD81,IF(J10=CC82,CD82,IF(J10=CC83,CD83,"FEJL")))) -> 65 | CA82: λf | CC82: Bronze | CD82: 65
BA83: Mangler inddata for forbindelsesbøjler | BC83: =IF(OR(J9="",J10="",J11=""),1,0) -> 0 | BH83: Linjetab vinduer | BM83: 0 | BN83: 0 | BO83: =BN83/$BN$89*100 -> 0 | BS83: =(2*(J17+K17+4*L17)) -> 4.8 | BT83: =IF(L17=0,0,1) -> 1 | BU83: =BS83*BT83 -> 4.8 | BZ83: =(((J11/2)/1000)^2)*3.14 -> 7.065e-06 | CA83: Af | CC83: Forsinket jern | CD83: 58 | CE83: *se område nedenfor
BH84: Linjetab forstærkninger | BM84: 0 | BN84: 0 | BO84: =BN84/$BN$89*100 -> 0 | BS84: =(2*(J18+K18+4*L18)) -> 4.8 | BT84: =IF(L18=0,0,1) -> 1 | BU84: =BS84*BT84 -> 4.8 | BZ84: =J9 -> 8 | CA84: nf
BS85: =(2*(J19+K19+4*L19)) -> 4.8 | BT85: =IF(L19=0,0,1) -> 1 | BU85: 4.8 | BZ85: =BW64 -> 0.3 | CA85: d1 | CC85: R1
BH86: Ophængsbøjler | BM86: =BF54 -> 0.0004177649805 | BN86: 0.0004177649805 | BO86: =BN86/$BN$89*100 -> 0.3215556256 | BS86: =(2*(J20+K20+4*L20)) -> 4.8 | BT86: =IF(L20=0,0,1) -> 1 | BU86: 4.8 | BZ86: =CC90 -> 8.571428571 | CA86: R1 | CC86: =IF(DL23="Isolering",BD8,"") -> 2.857142857
BH87: Murbindere | BM87: =BF15 -> 0.009248642546 | BN87: =(BL73*BM87)/BL79 -> 0.006011617655 | BO87: =BN87/$BN$89*100 -> 4.627169739 | BS87: =(2*(J21+K21+4*L21)) -> 4.8 | BT87: =IF(L21=0,0,1) -> 1 | BU87: 4.8 | BZ87: =BD13 -> 8.821782257 | CA87: RT | CC87: =IF(DL24="Isolering",BD9,"") -> 2.857142857
BT88: SUM | BU88: =SUM(BU83:BU87) -> 24 | CC88: =IF(DL25="Isolering",BD10,"") -> 2.857142857
BH89: Elementets samlede uværdi | BL89: ƩU | BM89: =BE55 -> 0.1299199726 | BN89: =SUM(BN73:BN78)+SUM(BN81:BN87) -> 0.1299199726 | BO89: =SUM(BO73:BO78)+SUM(BO81:BO87) -> 100 | CC89: =IF(DL26="Isolering",BD11,"") -> 
CC90: =SUM(CC86:CC89) -> 8.571428571
BO91: =IF(BM89=BN89,"passer","Fejl") -> passer
BH96: Element orientering
BI98: Dropdrown
BI99: Opad
BI100: Vandret | BY100: * | CD100: =17/CC102 -> 0.120105 | CE100: ganger med denne værdi for at få rustfrit stål til at være 17, da vi er sikre på denne værdi.
BI101: Nedad | BY101: plast | BZ101: diameter | CA101: ds418 værdi | CB101: Areal | CC101: ds418 værdi pr Areal | CE101: Derefter ses at værdien for Bronze passer nogenlunde… og vi kan derfor ca. bestemme værdien for forzinket jern.
BY102: rustfrit stål | BZ102: 3 | CA102: 0.004 | CB102: =(BZ102/1000)^2*3.14 -> 2.826e-05 | CC102: =CA102/CB102 -> 141.5428167 | CD102: =CC102*0.120105 -> 17
BY103: rustfrit stål | BZ103: 4 | CA103: 0.008 | CB103: =(BZ103/1000)^2*3.14 -> 5.024e-05 | CC103: =CA103/CB103 -> 159.2356688 | CD103: =CC103*0.120105 -> 19.125
BY104: rustfrit stål | BZ104: 5.5 | CA104: 0.014 | CB104: 9.4985e-05 | CC104: 147.3916934 | CD104: 17.70247934
BY105: Bronze | BZ105: 3 | CA105: 0.016 | CB105: 2.826e-05 | CC105: 566.1712668 | CD105: 68
BY106: Bronze | BZ106: 4 | CA106: 0.029 | CB106: 5.024e-05 | CC106: 577.2292994 | CD106: 69.328125
BY107: Bronze | BZ107: 5 | CA107: 0.045 | CB107: 7.85e-05 | CC107: 573.2484076 | CD107: 68.85
BY108: Forzinket jern | BZ108: 8 | CA108: 0.097 | CB108: 0.00020096 | CC108: 482.683121 | CD108: 57.97265625
BH109: Vinduer/døre/forstærkninger aktive?
BH110: Dør 1 | BI110: =IF(J14>0,1,"") -> 1 | BJ110: =IF(SUM(BI110:BI112)>0,1,0) -> 1
BH111: Dør 2 | BI111: =IF(J15>0,1,"") -> 1
BH112: Dør 3 | BI112: 1
BH113: Vindue 1 | BI113: 1 | BJ113: =IF(SUM(BI113:BI117)>0,1,0) -> 1
BH114: Vindue 2 | BI114: 1
BH115: Vindue 3 | BI115: 1
BH116: Vindue 4 | BI116: 1
BH117: Vindue 5 | BI117: 1
BH118: Forstærkning 1 | BI118: 1 | BJ118: =IF(SUM(BI118:BI120)>0,1,0) -> 1
BH119: Forstærkning 2 | BI119: 1
BH120: Forstærkning 3 | BI120: 1

Sheet Materialer
B2: Bagstøbning | E2: Isolering | H2: Forstøbning
B3: Type/Beskrivelse | C3: λ (Varmeledningsevne) | E3: Type/Beskrivelse | F3: λ (Varmeledningsevne) | H3: Type/Beskrivelse | I3: λ (Varmeledningsevne) | CA3: Konstruktion lag1 | CD3: Konstruktion lag2 | CG3: Konstruktion lag3 | CJ3: Konstruktion lag4 | CM3: Konstruktion lag5
C4: [W/mK] | F4: [W/mK] | I4: [W/mK]
B5: Beton med 1% armering | C5: 2.44 | E5: Rockwool Kl. 37 | F5: 0.037 | H5: Beton med 1% armering | I5: 2.54
B6: Beton med 2% armering | C6: 2.64 | E6: Rockwool Kl.35 | F6: 0.035 | H6: Beton med 2% armering | I6: 2.76
B7: Beton rho=1800 kg/m³ | C7: 1.2 | E7: Eps | F7: 0.031 | H7: Beton rho=1800 kg/m³ | I7: 1.3
B8: Beton rho=2100 kg/m³ | C8: 1.55 | E8: Pir | F8: 0.023 | H8: Beton rho=2100 kg/m³ | I8: 1.65
B9: Beton rho=2400 kg/m³ | C9: 2.1 | E9: Spaceline | F9: 0.04 | H9: Beton rho=2400 kg/m³ | I9: 2.2

Sheet Simpel Udskrift
B2: =Forside!B2 -> Bruger: | C2: =Forside!C2 -> Betonelement foreningen
B3: =Forside!B3 -> Sagsnavn: | C3: =Forside!C3 -> U-Værdi program | I3: =Forside!I3 -> Sag nr.: | J3: =Forside!J3 -> 017681
B4: =Forside!B4 -> Bygningsdel: | C4: =Forside!C4 -> Element | I4: =Forside!I4 -> Dato: | J4: =Forside!J4 -> 01-02-2013
B5: =Forside!B5 -> Emne: | C5: =Forside!C5 -> Excel ark til beregning af uværdier for betonsandwitchelementer | I5: =Forside!I5 -> Int.: | J5: =Forside!J5 -> MKTA / MRNI / MVVE
B8: Opstalt:
C30: Snittegning:
D57: Endelig U-Værdi: | G57: =Forside!F40 -> 0.1299199726 | H57: =Forside!G40 -> W/m²K
